Workbook

Sheet СВОД
A1: Наименование субъекта Российской Федерации
A2: № строки | B2: Мониторинг общеобразовательных организаций, реализующих общеобразовательные программы начального общего, основного общего и (или) среднего общего образования учебного предмета «Физическая культура» в 2019/2020 учебном году
A3: 1 | B3: 1. Общие сведения
A4: 2 | B4: Общая численность общеобразовательных организаций в субъекте РФ (юридических лиц) | G4: Общая численность обучающихся в общеобразовательных организациях субъекта РФ
B5: 1 | G5: 2
A6: 3 | B6: =SUM(НАЧАЛО:КОНЕЦ!B6) -> 23 | G6: =SUM(НАЧАЛО:КОНЕЦ!G6) -> 5284
A7: 4 | B7: 2. Спортивные объекты общеобразовательных организаций
A8: 5 | B8: Всего: | C8: Спортивный зал 24х12 м и более | D8: Спортивный зал 18х9 м и менее | E8: Спортивный зал отсутствует | F8: Зал для адаптивной физической культуры | G8: Тренажёрный зал | H8: Плавательный бассейн | I8: Универсальная спортивная площадка | J8: Площадка для подвижных игр
B10: 1 | C10: 2 | D10: 3 | E10: 4 | F10: 5 | G10: 6 | H10: 7 | I10: 8 | J10: 9
A11: 6 | B11: =C11+D11+E11+F11+G11+H11+I11+J11 -> 53 | C11: =SUM(НАЧАЛО:КОНЕЦ!C11) -> 6 | D11: =SUM(НАЧАЛО:КОНЕЦ!D11) -> 17 | E11: =SUM(НАЧАЛО:КОНЕЦ!E11) -> 1 | F11: =SUM(НАЧАЛО:КОНЕЦ!F11) -> 0 | G11: =SUM(НАЧАЛО:КОНЕЦ!G11) -> 2 | H11: =SUM(НАЧАЛО:КОНЕЦ!H11) -> 0 | I11: =SUM(НАЧАЛО:КОНЕЦ!I11) -> 13 | J11: =SUM(НАЧАЛО:КОНЕЦ!J11) -> 14
A12: 7 | B12: 3. Спортивное оборудование и инвентарь для организации общеобразовательной деятельности
A13: 8 | B13: Содержание раздела | I13: ВСЕГО
B14: 1 | I14: 2
A15: 9 | B15: Общеобразовательные организации, имеющие спортивное оборудование и инвентарь для занятий футболом | I15: =SUM(НАЧАЛО:КОНЕЦ!I15) -> 14 | J15: =SUM(НАЧАЛО:КОНЕЦ!J15) -> 0
A16: 10 | B16: Общеобразовательные организации, имеющие спортивное оборудование и инвентарь для занятий баскетболом | I16: =SUM(НАЧАЛО:КОНЕЦ!I16) -> 22 | J16: =SUM(НАЧАЛО:КОНЕЦ!J16) -> 0
A17: 11 | B17: Общеобразовательные организации, имеющие спортивное оборудование и инвентарь для занятий волейболом | I17: =SUM(НАЧАЛО:КОНЕЦ!I17) -> 20 | J17: =SUM(НАЧАЛО:КОНЕЦ!J17) -> 0
A18: 12 | B18: Общеобразовательные организации, имеющие спортивное оборудование и инвентарь для занятий гандболом | I18: =SUM(НАЧАЛО:КОНЕЦ!I18) -> 2 | J18: =SUM(НАЧАЛО:КОНЕЦ!J18) -> 0
A19: 13 | B19: Общеобразовательные организации, имеющие спортивное оборудование и инвентарь для занятий фитнесом, общефизической подготовкой | I19: =SUM(НАЧАЛО:КОНЕЦ!I19) -> 5 | J19: =SUM(НАЧАЛО:КОНЕЦ!J19) -> 0
A20: 14 | B20: Общеобразовательные организации, имеющие спортивное оборудование и инвентарь для занятий спортивной гимнастикой | I20: =SUM(НАЧАЛО:КОНЕЦ!I20) -> 9 | J20: =SUM(НАЧАЛО:КОНЕЦ!J20) -> 0
A21: 15 | B21: Общеобразовательные организации, имеющие спортивное оборудование и инвентарь для занятий лёгкой атлетикой | I21: =SUM(НАЧАЛО:КОНЕЦ!I21) -> 13 | J21: =SUM(НАЧАЛО:КОНЕЦ!J21) -> 0
A22: 16 | B22: Общеобразовательные организации, имеющие спортивное оборудование и инвентарь для занятий лыжной подготовкой | I22: =SUM(НАЧАЛО:КОНЕЦ!I22) -> 20 | J22: =SUM(НАЧАЛО:КОНЕЦ!J22) -> 0
A23: 17 | B23: Общеобразовательные организации, имеющие спортивное оборудование и инвентарь для занятий плаванием | I23: =SUM(НАЧАЛО:КОНЕЦ!I23) -> 0 | J23: =SUM(НАЧАЛО:КОНЕЦ!J23) -> 0
A24: 18 | B24: Общеобразовательные организации, имеющие спортивное оборудование и инвентарь для занятий подвижными играми и организации спортивных мероприятий | I24: =SUM(НАЧАЛО:КОНЕЦ!I24) -> 17 | J24: =SUM(НАЧАЛО:КОНЕЦ!J24) -> 0
A25: 19 | B25: Общеобразовательные организации, имеющие спортивное оборудование и инвентарь для занятий спортивными единоборствами (самбо, дзюдо, иное) | I25: =SUM(НАЧАЛО:КОНЕЦ!I25) -> 4 | J25: =SUM(НАЧАЛО:КОНЕЦ!J25) -> 0
A26: 20 | B26: Имеется дополнительное вариативное оборудование и инвентарь | I26: =SUM(НАЧАЛО:КОНЕЦ!I26) -> 4 | J26: =SUM(НАЧАЛО:КОНЕЦ!J26) -> 0
A27: 21 | B27: Кабинет учителя физической культуры | I27: =SUM(НАЧАЛО:КОНЕЦ!I27) -> 18 | J27: =SUM(НАЧАЛО:КОНЕЦ!J27) -> 0
A28: 22 | B28: 4. Организация урочной деятельности по учебному предмету «Физическая культура»
A29: 23 | B29: Общеобразовательные организации, в которых отведено на изучение учебного предмета «Физическая культура» в недельных учебных планах 3 часа | G29: Общеобразовательные организации, в которых отведено на изучение учебного предмета «Физическая культура» в недельных учебных планах 2 часа
B30: 1 | G30: 2
A31: 24 | B31: =SUM(НАЧАЛО:КОНЕЦ!B31) -> 23 | G31: =SUM(НАЧАЛО:КОНЕЦ!G31) -> 0
A32: 25 | B32: 5. Организация внеурочной деятельности спортивно-оздоровительного /физкультурно-спортивного направления
A33: 26 | B33: Общеобразовательные организации, в которых объём часов, отводимых на внеурочную деятельность, отсутствует | E33: Общеобразовательные организации, в которых объём часов, отводимых на внеурочную деятельность, предусматривает не более 2-х часов в неделю | H33: Общеобразовательные организации, в которых объем часов, отводимых на внеурочную деятельность, предусматривает более 2-х часов в неделю
B34: 1 | E34: 2 | H34: 3
A35: 27 | B35: =SUM(НАЧАЛО:КОНЕЦ!B35) -> 3 | E35: =SUM(НАЧАЛО:КОНЕЦ!E35) -> 11 | H35: =SUM(НАЧАЛО:КОНЕЦ!H35) -> 8
A36: 28 | B36: 6. Общеобразовательные организации, использующие в рабочей программе часы на изучение раздела «Плавание»
A37: 29 | B37: Общеобразовательные организации, использующие в рабочей программе часы на изучение раздела «Плавание»
A38: 30 | B38: =SUM(НАЧАЛО:КОНЕЦ!B38) -> 65 | E38: =SUM(НАЧАЛО:КОНЕЦ!E38) -> 0 | H38: =SUM(НАЧАЛО:КОНЕЦ!H38) -> 0
A39: 31 | B39: 7. Сведения об обучающихся в общеобразовательных организациях
A40: 32 | B40: Всего обучающихся: | C40: Обучающиеся, отнесенные к основной группе здоровья | D40: Обучающиеся, отнесённые к подготовительной группе здоровья | E40: Обучающиеся, отнесённые к специальной группе здоровья «А» | F40: Обучающиеся, отнесённые к специальной группе здоровья «Б» | G40: Обучающиеся с ограниченными возможностями здоровья | I40: Обучающихся, имеющие группу инвалидности
B45: 1 | C45: 2 | D45: 3 | E45: 4 | F45: 5 | G45: 6 | I45: 7
A46: 33 | B46: =C46+D46+E46+F46+G46+I46 -> 5284 | C46: =SUM(НАЧАЛО:КОНЕЦ!C46) -> 4755 | D46: =SUM(НАЧАЛО:КОНЕЦ!D46) -> 377 | E46: =SUM(НАЧАЛО:КОНЕЦ!E46) -> 53 | F46: =SUM(НАЧАЛО:КОНЕЦ!F46) -> 17 | G46: =SUM(НАЧАЛО:КОНЕЦ!G46) -> 6 | H46: =SUM(НАЧАЛО:КОНЕЦ!H46) -> 0 | I46: =SUM(НАЧАЛО:КОНЕЦ!I46) -> 76 | J46: =SUM(НАЧАЛО:КОНЕЦ!J46) -> 0 | K46: =B46=G6 -> TRUE
A47: 34 | B47: 8. Обучающиеся, принявшие участие во Всероссийской олимпиаде школьников по учебному предмету «Физическая культура»
A48: 35 | B48: Этап Всероссийской олимпиады | G48: Количество участников
B49: 1 | G49: 2
A50: 36 | B50: школьный | G50: =SUM(НАЧАЛО:КОНЕЦ!G50) -> 1050 | H50: =SUM(НАЧАЛО:КОНЕЦ!H50) -> 0 | I50: =SUM(НАЧАЛО:КОНЕЦ!I50) -> 0 | J50: =SUM(НАЧАЛО:КОНЕЦ!J50) -> 0
A51: 37 | B51: муниципальный | G51: =SUM(НАЧАЛО:КОНЕЦ!G51) -> 173 | H51: =SUM(НАЧАЛО:КОНЕЦ!H51) -> 0 | I51: =SUM(НАЧАЛО:КОНЕЦ!I51) -> 0 | J51: =SUM(НАЧАЛО:КОНЕЦ!J51) -> 0
A52: 38 | B52: региональный | G52: =SUM(НАЧАЛО:КОНЕЦ!G52) -> 5 | H52: =SUM(НАЧАЛО:КОНЕЦ!H52) -> 0 | I52: =SUM(НАЧАЛО:КОНЕЦ!I52) -> 0 | J52: =SUM(НАЧАЛО:КОНЕЦ!J52) -> 0
A53: 39 | B53: всероссийский | G53: =SUM(НАЧАЛО:КОНЕЦ!G53) -> 2 | H53: =SUM(НАЧАЛО:КОНЕЦ!H53) -> 0 | I53: =SUM(НАЧАЛО:КОНЕЦ!I53) -> 0 | J53: =SUM(НАЧАЛО:КОНЕЦ!J53) -> 0
A54: 40 | B54: 9. Кадровый состав
A55: 41 | B55: Общее количество учителей физической культуры | C55: Имеют профессиональное образование в области физической культуры и спорта | E55: Имеют высшую квалификационную категорию | G55: Имеют первую квалификационную категорию | I55: Прошедшие обучение по дополнительным профессиональным образовательным программам повышения квалификации, программам профессиональной переподготовки в 2019\2020 учебном году
C56: Высшее образование | D56: Среднее профессиональное образование
B57: 1 | C57: 2 | D57: 3 | E57: 4 | G57: 5 | I57: 6
A58: 42 | B58: =C58+D58 -> 38 | C58: =SUM(НАЧАЛО:КОНЕЦ!C58) -> 31 | D58: =SUM(НАЧАЛО:КОНЕЦ!D58) -> 7 | E58: =SUM(НАЧАЛО:КОНЕЦ!E58) -> 9 | F58: =SUM(НАЧАЛО:КОНЕЦ!F58) -> 0 | G58: =SUM(НАЧАЛО:КОНЕЦ!G58) -> 21 | H58: =SUM(НАЧАЛО:КОНЕЦ!H58) -> 0 | I58: =SUM(НАЧАЛО:КОНЕЦ!I58) -> 10 | J58: =SUM(НАЧАЛО:КОНЕЦ!J58) -> 0
A60: Контактное лицо: ___________________________________________ тел.: ________________________ e-mail: ___________________________ | C60: методист | D60: Гатина Л.Д. | F60: 8(8555)8 3-02-69 | H60: daniyalovna76@mail.ru
B61: (должность, Фамилия, Имя, Отчество)
A62: _____________________________
A63: (руководитель уполномоченного органа исполнительной
A64: субъекта Российской Федерации) ____________________ _____________________________ "____" _______________ 2020 г. | E64: Л.Р. Печина | F64: 14 | G64: декабря 2020 года
A66: (подпись) (расшифровка подписи)
B67: М.П.

Sheet НАЧАЛО
A1: Раздел 1. Сведения об общеобразовательных организациях
B3: № строки | C3: Общее количество общеобразовательных организаций (юр. лиц) | D3: Количество общеобразовательных организаций, имеющих лицензию на право ведения образовательной деятельности по подвиду дополнительного образования "дополнительное образование детей и взрослых" | E3: Количество общеобразовательных организаций (юр. лиц), реализующих программы дополнительного образования физкультурно-спортивной направленности
A5: 1 | B5: 2 | C5: 3 | D5: 4 | E5: 5
A6: Всего | B6: 01 | C6: =SUM(C7:C8) -> 0 | D6: =SUM(D7:D8) -> 0 | E6: =SUM(E7:E8) -> 0
A7: Из них в городских поселениях | B7: 02
A8: Из них в сельской местности | B8: 03

Sheet 1 шк
A1: № строки | B1: Мониторинг общеобразовательных организаций, реализующих общеобразовательные программы начального общего, основного общего и (или) среднего общего образования учебного предмета «Физическая культура» в 2019/2020 учебном году
A3: 1 | B3: 1. Общие сведения
A4: 2 | B4: Муниципальное бюджетное общеобразовательное учреждение "Заинская средняя общеобразовательная школа №1" | G4: Общая численность обучающихся в общеобразовательной организации
B5: 1 | G5: 2
A6: 3 | B6: =COUNTA(B4) -> 1 | G6: 351
A7: 4 | B7: 2. Спортивные объекты общеобразовательной организации
A8: 5 | B8: Всего: | C8: Спортивный зал 24х12 м и более | D8: Спортивный зал 18х9 м и менее | E8: Спортивный зал отсутствует | F8: Зал для адаптивной физической культуры | G8: Тренажёрный зал | H8: Плавательный бассейн | I8: Универсальная спортивная площадка | J8: Площадка для подвижных игр
B10: 1 | C10: 2 | D10: 3 | E10: 4 | F10: 5 | G10: 6 | H10: 7 | I10: 8 | J10: 9
A11: 6 | B11: =C11+D11+E11+F11+G11+H11+I11+J11 -> 4 | D11: 1 | I11: 1 | J11: 2
A12: 7 | B12: 3. Спортивное оборудование и инвентарь для организации общеобразовательной деятельности
A13: 8 | B13: Содержание раздела | I13: ВСЕГО
B14: 1 | I14: 2
A15: 9 | B15: Общеобразовательная организация, имеющая спортивное оборудование и инвентарь для занятий футболом | I15: 1
A16: 10 | B16: Общеобразовательная организация, имеющая спортивное оборудование и инвентарь для занятий баскетболом | I16: 1
A17: 11 | B17: Общеобразовательная организация, имеющая спортивное оборудование и инвентарь для занятий волейболом | I17: 1
A18: 12 | B18: Общеобразовательная организация, имеющая спортивное оборудование и инвентарь для занятий гандболом | I18: 1
A19: 13 | B19: Общеобразовательная организация, имеющая спортивное оборудование и инвентарь для занятий фитнесом, общефизической подготовкой | I19: 0
A20: 14 | B20: Общеобразовательная организация, имеющая спортивное оборудование и инвентарь для занятий спортивной гимнастикой | I20: 0
A21: 15 | B21: Общеобразовательная организация, имеющая спортивное оборудование и инвентарь для занятий лёгкой атлетикой | I21: 1
A22: 16 | B22: Общеобразовательная организация, имеющая спортивное оборудование и инвентарь для занятий лыжной подготовкой | I22: 1
A23: 17 | B23: Общеобразовательная организация, имеющая спортивное оборудование и инвентарь для занятий плаванием | I23: 0
A24: 18 | B24: Общеобразовательная организация, имеющая спортивное оборудование и инвентарь для занятий подвижными играми и организации спортивных мероприятий | I24: 1
A25: 19 | B25: Общеобразовательная организация, имеющая спортивное оборудование и инвентарь для занятий спортивными единоборствами (самбо, дзюдо, иное) | I25: 0
A26: 20 | B26: Имеется дополнительное вариативное оборудование и инвентарь | I26: 1
A27: 21 | B27: Кабинет учителя физической культуры | I27: 1
A28: 22 | B28: 4. Организация урочной деятельности по учебному предмету «Физическая культура»
A29: 23 | B29: Общеобразовательная организация, в которой отведено на изучение учебного предмета «Физическая культура» в недельных учебных планах 3 часа | G29: Общеобразовательная организация, в которой отведено на изучение учебного предмета «Физическая культура» в недельных учебных планах 2 часа
B30: 1 | G30: 2
A31: 24 | B31: 1
A32: 25 | B32: 5. Организация внеурочной деятельности спортивно-оздоровительного /физкультурно-спортивного направления
A33: 26 | B33: Общеобразовательная организация, в которой объём часов, отводимых на внеурочную деятельность, отсутствует | E33: Общеобразовательная организация, в которой объём часов, отводимых на внеурочную деятельность, предусматривает не более 2-х часов в неделю | H33: Общеобразовательная организация, в которой объём часов, отводимых на внеурочную деятельность, предусматривает более 2-х часов в неделю
B34: 1 | E34: 2 | H34: 3
A35: 27 | B35: 0 | H35: 1
A36: 28 | B36: 6. Общеобразовательная организация, использующая в рабочей программе часы на изучение раздела «Плавание»
A37: 29 | B37: Общеобразовательная организация, использующая в рабочей программе учебные часы на изучение раздела «Плавание»
A38: 30
A39: 31 | B39: 7. Сведения об обучающихся в общеобразовательной организации
A40: 32 | B40: Всего обучающихся: | C40: Обучающиеся, отнесенные к основной группе здоровья | D40: Обучающиеся, отнесённые к подготовительной группе здоровья | E40: Обучающиеся, отнесённые к специальной группе здоровья «А» | F40: Обучающиеся, отнесённые к специальной группе здоровья «Б» | G40: Обучающиеся с ограниченными возможностями здоровья | I40: Обучающихся, имеющие группу инвалидности
B45: 1 | C45: 2 | D45: 3 | E45: 4 | F45: 5 | G45: 6 | I45: 7
A46: 33 | B46: =C46+D46+E46+F46+G46+I46 -> 351 | C46: 309 | D46: 31 | E46: 8 | I46: 3 | K46: =B46=G6 -> TRUE
A47: 34 | B47: 8. Обучающиеся, принявшие участие во Всероссийской олимпиаде школьников по учебному предмету «Физическая культура»
A48: 35 | B48: Этап Всероссийской олимпиады | G48: Количество участников
B49: 1 | G49: 2
A50: 36 | B50: школьный | G50: 46
A51: 37 | B51: муниципальный | G51: 6
A52: 38 | B52: региональный | G52: 0
A53: 39 | B53: всероссийский | G53: 0
A54: 40 | B54: 9. Кадровый состав
A55: 41 | B55: Общее количество учителей физической культуры | C55: Имеют профессиональное образование в области физической культуры и спорта | E55: Имеют высшую квалификационную категорию | G55: Имеют первую квалификационную категорию | I55: Прошедшие обучение по дополнительным профессиональным образовательным программам повышения квалификации, программам профессиональной переподготовки в 2019\2020 учебном году
C56: Высшее образование | D56: Среднее профессиональное образование
B57: 1 | C57: 2 | D57: 3 | E57: 4 | G57: 5 | I57: 6
A58: 42 | B58: =C58+D58 -> 2 | C58: 1 | D58: 1 | E58: 1

Sheet 2 шк
A1: № строки | B1: Мониторинг общеобразовательных организаций, реализующих общеобразовательные программы начального общего, основного общего и (или) среднего общего образования учебного предмета «Физическая культура» в 2019/2020 учебном году
A3: 1 | B3: 1. Общие сведения
A4: 2 | B4: Муниципальное бюджетное общеобразовательное учреждение «Заинская средняя общеобразовательная школа №2» Заинского муниципального района Республики Татарстан | G4: Общая численность обучающихся в общеобразовательной организации
B5: 1 | G5: 2
A6: 3 | B6: =COUNTA(B4) -> 1 | G6: 523
A7: 4 | B7: 2. Спортивные объекты общеобразовательной организации
A8: 5 | B8: Всего: | C8: Спортивный зал 24х12 м и более | D8: Спортивный зал 18х9 м и менее | E8: Спортивный зал отсутствует | F8: Зал для адаптивной физической культуры | G8: Тренажёрный зал | H8: Плавательный бассейн | I8: Универсальная спортивная площадка | J8: Площадка для подвижных игр
B10: 1 | C10: 2 | D10: 3 | E10: 4 | F10: 5 | G10: 6 | H10: 7 | I10: 8 | J10: 9
A11: 6 | B11: =C11+D11+E11+F11+G11+H11+I11+J11 -> 3 | C11: 1 | I11: 1 | J11: 1
A12: 7 | B12: 3. Спортивное оборудование и инвентарь для организации общеобразовательной деятельности
A13: 8 | B13: Содержание раздела | I13: ВСЕГО
B14: 1 | I14: 2
A15: 9 | B15: Общеобразовательная организация, имеющая спортивное оборудование и инвентарь для занятий футболом | I15: 0
A16: 10 | B16: Общеобразовательная организация, имеющая спортивное оборудование и инвентарь для занятий баскетболом | I16: 1
A17: 11 | B17: Общеобразовательная организация, имеющая спортивное оборудование и инвентарь для занятий волейболом | I17: 0
A18: 12 | B18: Общеобразовательная организация, имеющая спортивное оборудование и инвентарь для занятий гандболом | I18: 0
A19: 13 | B19: Общеобразовательная организация, имеющая спортивное оборудование и инвентарь для занятий фитнесом, общефизической подготовкой | I19: 0
A20: 14 | B20: Общеобразовательная организация, имеющая спортивное оборудование и инвентарь для занятий спортивной гимнастикой | I20: 0
A21: 15 | B21: Общеобразовательная организация, имеющая спортивное оборудование и инвентарь для занятий лёгкой атлетикой | I21: 0
A22: 16 | B22: Общеобразовательная организация, имеющая спортивное оборудование и инвентарь для занятий лыжной подготовкой | I22: 1
A23: 17 | B23: Общеобразовательная организация, имеющая спортивное оборудование и инвентарь для занятий плаванием | I23: 0
A24: 18 | B24: Общеобразовательная организация, имеющая спортивное оборудование и инвентарь для занятий подвижными играми и организации спортивных мероприятий | I24: 1
A25: 19 | B25: Общеобразовательная организация, имеющая спортивное оборудование и инвентарь для занятий спортивными единоборствами (самбо, дзюдо, иное) | I25: 0
A26: 20 | B26: Имеется дополнительное вариативное оборудование и инвентарь | I26: 0
A27: 21 | B27: Кабинет учителя физической культуры | I27: 1
A28: 22 | B28: 4. Организация урочной деятельности по учебному предмету «Физическая культура»
A29: 23 | B29: Общеобразовательная организация, в которой отведено на изучение учебного предмета «Физическая культура» в недельных учебных планах 3 часа | G29: Общеобразовательная организация, в которой отведено на изучение учебного предмета «Физическая культура» в недельных учебных планах 2 часа
B30: 1 | G30: 2
A31: 24 | B31: 1 | G31: 0
A32: 25 | B32: 5. Организация внеурочной деятельности спортивно-оздоровительного /физкультурно-спортивного направления
A33: 26 | B33: Общеобразовательная организация, в которой объём часов, отводимых на внеурочную деятельность, отсутствует | E33: Общеобразовательная организация, в которой объём часов, отводимых на внеурочную деятельность, предусматривает не более 2-х часов в неделю | H33: Общеобразовательная организация, в которой объём часов, отводимых на внеурочную деятельность, предусматривает более 2-х часов в неделю
B34: 1 | E34: 2 | H34: 3
A35: 27 | B35: 1 | E35: 0 | H35: 0
A36: 28 | B36: 6. Общеобразовательная организация, использующая в рабочей программе часы на изучение раздела «Плавание»
A37: 29 | B37: Общеобразовательная организация, использующая в рабочей программе учебные часы на изучение раздела «Плавание»
A38: 30 | B38: 3
A39: 31 | B39: 7. Сведения об обучающихся в общеобразовательной организации
A40: 32 | B40: Всего обучающихся: | C40: Обучающиеся, отнесенные к основной группе здоровья | D40: Обучающиеся, отнесённые к подготовительной группе здоровья | E40: Обучающиеся, отнесённые к специальной группе здоровья «А» | F40: Обучающиеся, отнесённые к специальной группе здоровья «Б» | G40: Обучающиеся с ограниченными возможностями здоровья | I40: Обучающихся, имеющие группу инвалидности
B45: 1 | C45: 2 | D45: 3 | E45: 4 | F45: 5 | G45: 6 | I45: 7
A46: 33 | B46: =C46+D46+E46+F46+G46+I46 -> 523 | C46: 458 | D46: 57 | E46: 7 | F46: 0 | G46: 0 | I46: 1 | K46: =B46=G6 -> TRUE
A47: 34 | B47: 8. Обучающиеся, принявшие участие во Всероссийской олимпиаде школьников по учебному предмету «Физическая культура»
A48: 35 | B48: Этап Всероссийской олимпиады | G48: Количество участников
B49: 1 | G49: 2
A50: 36 | B50: школьный | G50: 75
A51: 37 | B51: муниципальный | G51: 8
A52: 38 | B52: региональный | G52: 0
A53: 39 | B53: всероссийский | G53: 0
A54: 40 | B54: 9. Кадровый состав
A55: 41 | B55: Общее количество учителей физической культуры | C55: Имеют профессиональное образование в области физической культуры и спорта | E55: Имеют высшую квалификационную категорию | G55: Имеют первую квалификационную категорию | I55: Прошедшие обучение по дополнительным профессиональным образовательным программам повышения квалификации, программам профессиональной переподготовки в 2019\2020 учебном году
C56: Высшее образование | D56: Среднее профессиональное образование
B57: 1 | C57: 2 | D57: 3 | E57: 4 | G57: 5 | I57: 6
A58: 42 | B58: =C58+D58 -> 3 | C58: 3 | D58: 0 | E58: 0 | G58: 2 | I58: 1

Sheet 3 шк
A1: № строки | B1: Мониторинг общеобразовательных организаций, реализующих общеобразовательные программы начального общего, основного общего и (или) среднего общего образования учебного предмета «Физическая культура» в 2019/2020 учебном году
A3: 1 | B3: 1. Общие сведения
A4: 2 | B4: Муниципальное бюджетное общеобразовательное учреждение "Заинская среднеобщеобразовательная школа №4" Заинского муниципального района Республикик Татарстан | G4: Общая численность обучающихся в общеобразовательной организации
B5: 1 | G5: 2
A6: 3 | B6: =COUNTA(B4) -> 1 | G6: 449
A7: 4 | B7: 2. Спортивные объекты общеобразовательной организации
A8: 5 | B8: Всего: | C8: Спортивный зал 24х12 м и более | D8: Спортивный зал 18х9 м и менее | E8: Спортивный зал отсутствует | F8: Зал для адаптивной физической культуры | G8: Тренажёрный зал | H8: Плавательный бассейн | I8: Универсальная спортивная площадка | J8: Площадка для подвижных игр
B10: 1 | C10: 2 | D10: 3 | E10: 4 | F10: 5 | G10: 6 | H10: 7 | I10: 8 | J10: 9
A11: 6 | B11: =C11+D11+E11+F11+G11+H11+I11+J11 -> 2 | D11: 1 | I11: 1
A12: 7 | B12: 3. Спортивное оборудование и инвентарь для организации общеобразовательной деятельности
A13: 8 | B13: Содержание раздела | I13: ВСЕГО
B14: 1 | I14: 2
A15: 9 | B15: Общеобразовательная организация, имеющая спортивное оборудование и инвентарь для занятий футболом
A16: 10 | B16: Общеобразовательная организация, имеющая спортивное оборудование и инвентарь для занятий баскетболом | I16: 1
A17: 11 | B17: Общеобразовательная организация, имеющая спортивное оборудование и инвентарь для занятий волейболом
A18: 12 | B18: Общеобразовательная организация, имеющая спортивное оборудование и инвентарь для занятий гандболом
A19: 13 | B19: Общеобразовательная организация, имеющая спортивное оборудование и инвентарь для занятий фитнесом, общефизической подготовкой
A20: 14 | B20: Общеобразовательная организация, имеющая спортивное оборудование и инвентарь для занятий спортивной гимнастикой | I20: 1
A21: 15 | B21: Общеобразовательная организация, имеющая спортивное оборудование и инвентарь для занятий лёгкой атлетикой
A22: 16 | B22: Общеобразовательная организация, имеющая спортивное оборудование и инвентарь для занятий лыжной подготовкой | I22: 1
A23: 17 | B23: Общеобразовательная организация, имеющая спортивное оборудование и инвентарь для занятий плаванием
A24: 18 | B24: Общеобразовательная организация, имеющая спортивное оборудование и инвентарь для занятий подвижными играми и организации спортивных мероприятий | I24: 1
A25: 19 | B25: Общеобразовательная организация, имеющая спортивное оборудование и инвентарь для занятий спортивными единоборствами (самбо, дзюдо, иное)
A26: 20 | B26: Имеется дополнительное вариативное оборудование и инвентарь
A27: 21 | B27: Кабинет учителя физической культуры
A28: 22 | B28: 4. Организация урочной деятельности по учебному предмету «Физическая культура»
A29: 23 | B29: Общеобразовательная организация, в которой отведено на изучение учебного предмета «Физическая культура» в недельных учебных планах 3 часа | G29: Общеобразовательная организация, в которой отведено на изучение учебного предмета «Физическая культура» в недельных учебных планах 2 часа
B30: 1 | G30: 2
A31: 24 | B31: 1
A32: 25 | B32: 5. Организация внеурочной деятельности спортивно-оздоровительного /физкультурно-спортивного направления
A33: 26 | B33: Общеобразовательная организация, в которой объём часов, отводимых на внеурочную деятельность, отсутствует | E33: Общеобразовательная организация, в которой объём часов, отводимых на внеурочную деятельность, предусматривает не более 2-х часов в неделю | H33: Общеобразовательная организация, в которой объём часов, отводимых на внеурочную деятельность, предусматривает более 2-х часов в неделю
B34: 1 | E34: 2 | H34: 3
A35: 27 | H35: 1
A36: 28 | B36: 6. Общеобразовательная организация, использующая в рабочей программе часы на изучение раздела «Плавание»
A37: 29 | B37: Общеобразовательная организация, использующая в рабочей программе учебные часы на изучение раздела «Плавание»
A38: 30 | B38: 3
A39: 31 | B39: 7. Сведения об обучающихся в общеобразовательной организации
A40: 32 | B40: Всего обучающихся: | C40: Обучающиеся, отнесенные к основной группе здоровья | D40: Обучающиеся, отнесённые к подготовительной группе здоровья | E40: Обучающиеся, отнесённые к специальной группе здоровья «А» | F40: Обучающиеся, отнесённые к специальной группе здоровья «Б» | G40: Обучающиеся с ограниченными возможностями здоровья | I40: Обучающихся, имеющие группу инвалидности
B45: 1 | C45: 2 | D45: 3 | E45: 4 | F45: 5 | G45: 6 | I45: 7
A46: 33 | B46: =C46+D46+E46+F46+G46+I46 -> 449 | C46: 361 | D46: 70 | E46: 3 | F46: 10 | G46: 0 | I46: 5 | K46: =B46=G6 -> TRUE
A47: 34 | B47: 8. Обучающиеся, принявшие участие во Всероссийской олимпиаде школьников по учебному предмету «Физическая культура»
A48: 35 | B48: Этап Всероссийской олимпиады | G48: Количество участников
B49: 1 | G49: 2
A50: 36 | B50: школьный | G50: 120
A51: 37 | B51: муниципальный | G51: 20
A52: 38 | B52: региональный | G52: 1
A53: 39 | B53: всероссийский | G53: 0
A54: 40 | B54: 9. Кадровый состав
A55: 41 | B55: Общее количество учителей физической культуры | C55: Имеют профессиональное образование в области физической культуры и спорта | E55: Имеют высшую квалификационную категорию | G55: Имеют первую квалификационную категорию | I55: Прошедшие обучение по дополнительным профессиональным образовательным программам повышения квалификации, программам профессиональной переподготовки в 2019\2020 учебном году
C56: Высшее образование | D56: Среднее профессиональное образование
B57: 1 | C57: 2 | D57: 3 | E57: 4 | G57: 5 | I57: 6
A58: 42 | B58: =C58+D58 -> 2 | C58: 1 | D58: 1 | E58: 1 | I58: 1

Sheet 4 шк
A1: № строки | B1: Мониторинг общеобразовательных организаций, реализующих общеобразовательные программы начального общего, основного общего и (или) среднего общего образования учебного предмета «Физическая культура» в 2019/2020 учебном году
A3: 1 | B3: 1. Общие сведения
A4: 2 | B4: Муниципальное бюджетное общеобразовательное учреждение "Заинская среднеобщеобразовательная школа №4" Заинского муниципальгорайона Республикик Татарстан | G4: Общая численность обучающихся в общеобразовательной организации
B5: 1 | G5: 2
A6: 3 | B6: =COUNTA(B4) -> 1 | G6: 643
A7: 4 | B7: 2. Спортивные объекты общеобразовательной организации
A8: 5 | B8: Всего: | C8: Спортивный зал 24х12 м и более | D8: Спортивный зал 18х9 м и менее | E8: Спортивный зал отсутствует | F8: Зал для адаптивной физической культуры | G8: Тренажёрный зал | H8: Плавательный бассейн | I8: Универсальная спортивная площадка | J8: Площадка для подвижных игр
B10: 1 | C10: 2 | D10: 3 | E10: 4 | F10: 5 | G10: 6 | H10: 7 | I10: 8 | J10: 9
A11: 6 | B11: =C11+D11+E11+F11+G11+H11+I11+J11 -> 4 | C11: 2 | D11: 0 | E11: 0 | F11: 0 | G11: 0 | H11: 0 | I11: 1 | J11: 1
A12: 7 | B12: 3. Спортивное оборудование и инвентарь для организации общеобразовательной деятельности
A13: 8 | B13: Содержание раздела | I13: ВСЕГО
B14: 1 | I14: 2
A15: 9 | B15: Общеобразовательная организация, имеющая спортивное оборудование и инвентарь для занятий футболом | I15: 1
A16: 10 | B16: Общеобразовательная организация, имеющая спортивное оборудование и инвентарь для занятий баскетболом | I16: 1
A17: 11 | B17: Общеобразовательная организация, имеющая спортивное оборудование и инвентарь для занятий волейболом | I17: 1
A18: 12 | B18: Общеобразовательная организация, имеющая спортивное оборудование и инвентарь для занятий гандболом | I18: 0
A19: 13 | B19: Общеобразовательная организация, имеющая спортивное оборудование и инвентарь для занятий фитнесом, общефизической подготовкой | I19: 1
A20: 14 | B20: Общеобразовательная организация, имеющая спортивное оборудование и инвентарь для занятий спортивной гимнастикой | I20: 0
A21: 15 | B21: Общеобразовательная организация, имеющая спортивное оборудование и инвентарь для занятий лёгкой атлетикой | I21: 1
A22: 16 | B22: Общеобразовательная организация, имеющая спортивное оборудование и инвентарь для занятий лыжной подготовкой | I22: 1
A23: 17 | B23: Общеобразовательная организация, имеющая спортивное оборудование и инвентарь для занятий плаванием | I23: 0
A24: 18 | B24: Общеобразовательная организация, имеющая спортивное оборудование и инвентарь для занятий подвижными играми и организации спортивных мероприятий | I24: 1
A25: 19 | B25: Общеобразовательная организация, имеющая спортивное оборудование и инвентарь для занятий спортивными единоборствами (самбо, дзюдо, иное) | I25: 0
A26: 20 | B26: Имеется дополнительное вариативное оборудование и инвентарь | I26: 1
A27: 21 | B27: Кабинет учителя физической культуры | I27: 1
A28: 22 | B28: 4. Организация урочной деятельности по учебному предмету «Физическая культура»
A29: 23 | B29: Общеобразовательная организация, в которой отведено на изучение учебного предмета «Физическая культура» в недельных учебных планах 3 часа | G29: Общеобразовательная организация, в которой отведено на изучение учебного предмета «Физическая культура» в недельных учебных планах 2 часа
B30: 1 | G30: 2
A31: 24 | B31: 1
A32: 25 | B32: 5. Организация внеурочной деятельности спортивно-оздоровительного /физкультурно-спортивного направления
A33: 26 | B33: Общеобразовательная организация, в которой объём часов, отводимых на внеурочную деятельность, отсутствует | E33: Общеобразовательная организация, в которой объём часов, отводимых на внеурочную деятельность, предусматривает не более 2-х часов в неделю | H33: Общеобразовательная организация, в которой объём часов, отводимых на внеурочную деятельность, предусматривает более 2-х часов в неделю
B34: 1 | E34: 2 | H34: 3
A35: 27 | B35: 0 | E35: 0 | H35: 1
A36: 28 | B36: 6. Общеобразовательная организация, использующая в рабочей программе часы на изучение раздела «Плавание»
A37: 29 | B37: Общеобразовательная организация, использующая в рабочей программе учебные часы на изучение раздела «Плавание»
A38: 30 | B38: 13
A39: 31 | B39: 7. Сведения об обучающихся в общеобразовательной организации
A40: 32 | B40: Всего обучающихся: | C40: Обучающиеся, отнесенные к основной группе здоровья | D40: Обучающиеся, отнесённые к подготовительной группе здоровья | E40: Обучающиеся, отнесённые к специальной группе здоровья «А» | F40: Обучающиеся, отнесённые к специальной группе здоровья «Б» | G40: Обучающиеся с ограниченными возможностями здоровья | I40: Обучающихся, имеющие группу инвалидности
B45: 1 | C45: 2 | D45: 3 | E45: 4 | F45: 5 | G45: 6 | I45: 7
A46: 33 | B46: =C46+D46+E46+F46+G46+I46 -> 643 | C46: 621 | D46: 17 | E46: 4 | F46: 0 | G46: 0 | I46: 1 | K46: =B46=G6 -> TRUE
A47: 34 | B47: 8. Обучающиеся, принявшие участие во Всероссийской олимпиаде школьников по учебному предмету «Физическая культура»
A48: 35 | B48: Этап Всероссийской олимпиады | G48: Количество участников
B49: 1 | G49: 2
A50: 36 | B50: школьный | G50: 134
A51: 37 | B51: муниципальный | G51: 29
A52: 38 | B52: региональный | G52: 2
A53: 39 | B53: всероссийский | G53: 1
A54: 40 | B54: 9. Кадровый состав
A55: 41 | B55: Общее количество учителей физической культуры | C55: Имеют профессиональное образование в области физической культуры и спорта | E55: Имеют высшую квалификационную категорию | G55: Имеют первую квалификационную категорию | I55: Прошедшие обучение по дополнительным профессиональным образовательным программам повышения квалификации, программам профессиональной переподготовки в 2019\2020 учебном году
C56: Высшее образование | D56: Среднее профессиональное образование
B57: 1 | C57: 2 | D57: 3 | E57: 4 | G57: 5 | I57: 6
A58: 42 | B58: =C58+D58 -> 3 | C58: 2 | D58: 1 | E58: 1 | G58: 1 | I58: 0

Sheet 5 шк
A1: № строки | B1: Мониторинг общеобразовательных организаций, реализующих общеобразовательные программы начального общего, основного общего и (или) среднего общего образования учебного предмета «Физическая культура» в 2019/2020 учебном году
A3: 1 | B3: 1. Общие сведения
A4: 2 | B4: Муниципальное бюджетное общеобразовательное учреждение " Заинская основная общеобразовательная школа №5" Заинского муниципального района Республики Татарстан | G4: Общая численность обучающихся в общеобразовательной организации
B5: 1 | G5: 2
A6: 3 | B6: =COUNTA(B4) -> 1 | G6: 162
A7: 4 | B7: 2. Спортивные объекты общеобразовательной организации
A8: 5 | B8: Всего: | C8: Спортивный зал 24х12 м и более | D8: Спортивный зал 18х9 м и менее | E8: Спортивный зал отсутствует | F8: Зал для адаптивной физической культуры | G8: Тренажёрный зал | H8: Плавательный бассейн | I8: Универсальная спортивная площадка | J8: Площадка для подвижных игр
B10: 1 | C10: 2 | D10: 3 | E10: 4 | F10: 5 | G10: 6 | H10: 7 | I10: 8 | J10: 9
A11: 6 | B11: =C11+D11+E11+F11+G11+H11+I11+J11 -> 2 | C11: 0 | D11: 1 | E11: 0 | F11: 0 | G11: 0 | H11: 0 | I11: 1 | J11: 0
A12: 7 | B12: 3. Спортивное оборудование и инвентарь для организации общеобразовательной деятельности
A13: 8 | B13: Содержание раздела | I13: ВСЕГО
B14: 1 | I14: 2
A15: 9 | B15: Общеобразовательная организация, имеющая спортивное оборудование и инвентарь для занятий футболом | I15: 1
A16: 10 | B16: Общеобразовательная организация, имеющая спортивное оборудование и инвентарь для занятий баскетболом | I16: 1
A17: 11 | B17: Общеобразовательная организация, имеющая спортивное оборудование и инвентарь для занятий волейболом | I17: 1
A18: 12 | B18: Общеобразовательная организация, имеющая спортивное оборудование и инвентарь для занятий гандболом | I18: 0
A19: 13 | B19: Общеобразовательная организация, имеющая спортивное оборудование и инвентарь для занятий фитнесом, общефизической подготовкой | I19: 0
A20: 14 | B20: Общеобразовательная организация, имеющая спортивное оборудование и инвентарь для занятий спортивной гимнастикой | I20: 0
A21: 15 | B21: Общеобразовательная организация, имеющая спортивное оборудование и инвентарь для занятий лёгкой атлетикой | I21: 1
A22: 16 | B22: Общеобразовательная организация, имеющая спортивное оборудование и инвентарь для занятий лыжной подготовкой | I22: 1
A23: 17 | B23: Общеобразовательная организация, имеющая спортивное оборудование и инвентарь для занятий плаванием | I23: 0
A24: 18 | B24: Общеобразовательная организация, имеющая спортивное оборудование и инвентарь для занятий подвижными играми и организации спортивных мероприятий | I24: 1
A25: 19 | B25: Общеобразовательная организация, имеющая спортивное оборудование и инвентарь для занятий спортивными единоборствами (самбо, дзюдо, иное) | I25: 0
A26: 20 | B26: Имеется дополнительное вариативное оборудование и инвентарь | I26: 0
A27: 21 | B27: Кабинет учителя физической культуры | I27: 1
A28: 22 | B28: 4. Организация урочной деятельности по учебному предмету «Физическая культура»
A29: 23 | B29: Общеобразовательная организация, в которой отведено на изучение учебного предмета «Физическая культура» в недельных учебных планах 3 часа | G29: Общеобразовательная организация, в которой отведено на изучение учебного предмета «Физическая культура» в недельных учебных планах 2 часа
B30: 1 | G30: 2
A31: 24 | B31: 1 | G31: 0
A32: 25 | B32: 5. Организация внеурочной деятельности спортивно-оздоровительного /физкультурно-спортивного направления
A33: 26 | B33: Общеобразовательная организация, в которой объём часов, отводимых на внеурочную деятельность, отсутствует | E33: Общеобразовательная организация, в которой объём часов, отводимых на внеурочную деятельность, предусматривает не более 2-х часов в неделю | H33: Общеобразовательная организация, в которой объём часов, отводимых на внеурочную деятельность, предусматривает более 2-х часов в неделю
B34: 1 | E34: 2 | H34: 3
A35: 27 | B35: 0 | E35: 1 | H35: 0
A36: 28 | B36: 6. Общеобразовательная организация, использующая в рабочей программе часы на изучение раздела «Плавание»
A37: 29 | B37: Общеобразовательная организация, использующая в рабочей программе учебные часы на изучение раздела «Плавание»
A38: 30 | B38: 1
A39: 31 | B39: 7. Сведения об обучающихся в общеобразовательной организации
A40: 32 | B40: Всего обучающихся: | C40: Обучающиеся, отнесенные к основной группе здоровья | D40: Обучающиеся, отнесённые к подготовительной группе здоровья | E40: Обучающиеся, отнесённые к специальной группе здоровья «А» | F40: Обучающиеся, отнесённые к специальной группе здоровья «Б» | G40: Обучающиеся с ограниченными возможностями здоровья | I40: Обучающихся, имеющие группу инвалидности
B45: 1 | C45: 2 | D45: 3 | E45: 4 | F45: 5 | G45: 6 | I45: 7
A46: 33 | B46: =C46+D46+E46+F46+G46+I46 -> 162 | C46: 158 | G46: 1 | I46: 3 | K46: =B46=G6 -> TRUE
A47: 34 | B47: 8. Обучающиеся, принявшие участие во Всероссийской олимпиаде школьников по учебному предмету «Физическая культура»
A48: 35 | B48: Этап Всероссийской олимпиады | G48: Количество участников
B49: 1 | G49: 2
A50: 36 | B50: школьный | G50: 45
A51: 37 | B51: муниципальный | G51: 6
A52: 38 | B52: региональный | G52: 0
A53: 39 | B53: всероссийский | G53: 0
A54: 40 | B54: 9. Кадровый состав
A55: 41 | B55: Общее количество учителей физической культуры | C55: Имеют профессиональное образование в области физической культуры и спорта | E55: Имеют высшую квалификационную категорию | G55: Имеют первую квалификационную категорию | I55: Прошедшие обучение по дополнительным профессиональным образовательным программам повышения квалификации, программам профессиональной переподготовки в 2019\2020 учебном году
C56: Высшее образование | D56: Среднее профессиональное образование
B57: 1 | C57: 2 | D57: 3 | E57: 4 | G57: 5 | I57: 6
A58: 42 | B58: =C58+D58 -> 1 | C58: 1 | G58: 1

Sheet 6 шк
A1: № строки | B1: Мониторинг общеобразовательных организаций, реализующих общеобразовательные программы начального общего, основного общего и (или) среднего общего образования учебного предмета «Физическая культура» в 2019/2020 учебном году
A3: 1 | B3: 1. Общие сведения
A4: 2 | B4: Муниципальное бюджетное общеобразовательное учреждение "Заинская средняя общеобразовательная школа №6" Заинского муниципального района Республики Татарстан | G4: Общая численность обучающихся в общеобразовательной организации
B5: 1 | G5: 2
A6: 3 | B6: =COUNTA(B4) -> 1 | G6: 1182
A7: 4 | B7: 2. Спортивные объекты общеобразовательной организации
A8: 5 | B8: Всего: | C8: Спортивный зал 24х12 м и более | D8: Спортивный зал 18х9 м и менее | E8: Спортивный зал отсутствует | F8: Зал для адаптивной физической культуры | G8: Тренажёрный зал | H8: Плавательный бассейн | I8: Универсальная спортивная площадка | J8: Площадка для подвижных игр
B10: 1 | C10: 2 | D10: 3 | E10: 4 | F10: 5 | G10: 6 | H10: 7 | I10: 8 | J10: 9
A11: 6 | B11: =C11+D11+E11+F11+G11+H11+I11+J11 -> 4 | C11: 1 | D11: 0 | E11: 0 | F11: 0 | G11: 1 | H11: 0 | I11: 1 | J11: 1
A12: 7 | B12: 3. Спортивное оборудование и инвентарь для организации общеобразовательной деятельности
A13: 8 | B13: Содержание раздела | I13: ВСЕГО
B14: 1 | I14: 2
A15: 9 | B15: Общеобразовательная организация, имеющая спортивное оборудование и инвентарь для занятий футболом | I15: 1
A16: 10 | B16: Общеобразовательная организация, имеющая спортивное оборудование и инвентарь для занятий баскетболом | I16: 1
A17: 11 | B17: Общеобразовательная организация, имеющая спортивное оборудование и инвентарь для занятий волейболом | I17: 1
A18: 12 | B18: Общеобразовательная организация, имеющая спортивное оборудование и инвентарь для занятий гандболом | I18: 0
A19: 13 | B19: Общеобразовательная организация, имеющая спортивное оборудование и инвентарь для занятий фитнесом, общефизической подготовкой | I19: 0
A20: 14 | B20: Общеобразовательная организация, имеющая спортивное оборудование и инвентарь для занятий спортивной гимнастикой | I20: 1
A21: 15 | B21: Общеобразовательная организация, имеющая спортивное оборудование и инвентарь для занятий лёгкой атлетикой | I21: 1
A22: 16 | B22: Общеобразовательная организация, имеющая спортивное оборудование и инвентарь для занятий лыжной подготовкой | I22: 1
A23: 17 | B23: Общеобразовательная организация, имеющая спортивное оборудование и инвентарь для занятий плаванием | I23: 0
A24: 18 | B24: Общеобразовательная организация, имеющая спортивное оборудование и инвентарь для занятий подвижными играми и организации спортивных мероприятий | I24: 1
A25: 19 | B25: Общеобразовательная организация, имеющая спортивное оборудование и инвентарь для занятий спортивными единоборствами (самбо, дзюдо, иное) | I25: 0
A26: 20 | B26: Имеется дополнительное вариативное оборудование и инвентарь | I26: 0
A27: 21 | B27: Кабинет учителя физической культуры | I27: 1
A28: 22 | B28: 4. Организация урочной деятельности по учебному предмету «Физическая культура»
A29: 23 | B29: Общеобразовательная организация, в которой отведено на изучение учебного предмета «Физическая культура» в недельных учебных планах 3 часа | G29: Общеобразовательная организация, в которой отведено на изучение учебного предмета «Физическая культура» в недельных учебных планах 2 часа
B30: 1 | G30: 2
A31: 24 | B31: 1 | G31: 0
A32: 25 | B32: 5. Организация внеурочной деятельности спортивно-оздоровительного /физкультурно-спортивного направления
A33: 26 | B33: Общеобразовательная организация, в которой объём часов, отводимых на внеурочную деятельность, отсутствует | E33: Общеобразовательная организация, в которой объём часов, отводимых на внеурочную деятельность, предусматривает не более 2-х часов в неделю | H33: Общеобразовательная организация, в которой объём часов, отводимых на внеурочную деятельность, предусматривает более 2-х часов в неделю
B34: 1 | E34: 2 | H34: 3
A35: 27 | B35: 0 | E35: 1 | H35: 0
A36: 28 | B36: 6. Общеобразовательная организация, использующая в рабочей программе часы на изучение раздела «Плавание»
A37: 29 | B37: Общеобразовательная организация, использующая в рабочей программе учебные часы на изучение раздела «Плавание»
A38: 30 | B38: 3
A39: 31 | B39: 7. Сведения об обучающихся в общеобразовательной организации
A40: 32 | B40: Всего обучающихся: | C40: Обучающиеся, отнесенные к основной группе здоровья | D40: Обучающиеся, отнесённые к подготовительной группе здоровья | E40: Обучающиеся, отнесённые к специальной группе здоровья «А» | F40: Обучающиеся, отнесённые к специальной группе здоровья «Б» | G40: Обучающиеся с ограниченными возможностями здоровья | I40: Обучающихся, имеющие группу инвалидности
B45: 1 | C45: 2 | D45: 3 | E45: 4 | F45: 5 | G45: 6 | I45: 7
A46: 33 | B46: =C46+D46+E46+F46+G46+I46 -> 1182 | C46: 1104 | D46: 50 | E46: 13 | F46: 0 | G46: 2 | I46: 13 | K46: =B46=G6 -> TRUE
A47: 34 | B47: 8. Обучающиеся, принявшие участие во Всероссийской олимпиаде школьников по учебному предмету «Физическая культура»
A48: 35 | B48: Этап Всероссийской олимпиады | G48: Количество участников
B49: 1 | G49: 2
A50: 36 | B50: школьный | G50: 55
A51: 37 | B51: муниципальный | G51: 20
A52: 38 | B52: региональный | G52: 0
A53: 39 | B53: всероссийский | G53: 0
A54: 40 | B54: 9. Кадровый состав
A55: 41 | B55: Общее количество учителей физической культуры | C55: Имеют профессиональное образование в области физической культуры и спорта | E55: Имеют высшую квалификационную категорию | G55: Имеют первую квалификационную категорию | I55: Прошедшие обучение по дополнительным профессиональным образовательным программам повышения квалификации, программам профессиональной переподготовки в 2019\2020 учебном году
C56: Высшее образование | D56: Среднее профессиональное образование
B57: 1 | C57: 2 | D57: 3 | E57: 4 | G57: 5 | I57: 6
A58: 42 | B58: =C58+D58 -> 4 | C58: 3 | D58: 1 | E58: 1 | G58: 1 | I58: 1

Sheet 7 шк
A1: № строки | B1: Мониторинг общеобразовательных организаций, реализующих общеобразовательные программы начального общего, основного общего и (или) среднего общего образования учебного предмета «Физическая культура» в 2019/2020 учебном году
A3: 1 | B3: 1. Общие сведения
A4: 2 | B4: Муниципальное бюджетное общеобразовательное учреждение "Заинская среднеобщеобразовательная школа №7 с углубленным изучением отдельных предметов" Заинского муниципального района Республики Татарстан | G4: Общая численность обучающихся в общеобразовательной организации
B5: 1 | G5: 2
A6: 3 | B6: =COUNTA(B4) -> 1 | G6: 692
A7: 4 | B7: 2. Спортивные объекты общеобразовательной организации
A8: 5 | B8: Всего: | C8: Спортивный зал 24х12 м и более | D8: Спортивный зал 18х9 м и менее | E8: Спортивный зал отсутствует | F8: Зал для адаптивной физической культуры | G8: Тренажёрный зал | H8: Плавательный бассейн | I8: Универсальная спортивная площадка | J8: Площадка для подвижных игр
B10: 1 | C10: 2 | D10: 3 | E10: 4 | F10: 5 | G10: 6 | H10: 7 | I10: 8 | J10: 9
A11: 6 | B11: =C11+D11+E11+F11+G11+H11+I11+J11 -> 4 | C11: 1 | D11: 0 | E11: 0 | F11: 0 | G11: 1 | H11: 0 | I11: 1 | J11: 1
A12: 7 | B12: 3. Спортивное оборудование и инвентарь для организации общеобразовательной деятельности
A13: 8 | B13: Содержание раздела | I13: ВСЕГО
B14: 1 | I14: 2
A15: 9 | B15: Общеобразовательная организация, имеющая спортивное оборудование и инвентарь для занятий футболом | I15: 1
A16: 10 | B16: Общеобразовательная организация, имеющая спортивное оборудование и инвентарь для занятий баскетболом | I16: 1
A17: 11 | B17: Общеобразовательная организация, имеющая спортивное оборудование и инвентарь для занятий волейболом | I17: 1
A18: 12 | B18: Общеобразовательная организация, имеющая спортивное оборудование и инвентарь для занятий гандболом | I18: 1
A19: 13 | B19: Общеобразовательная организация, имеющая спортивное оборудование и инвентарь для занятий фитнесом, общефизической подготовкой | I19: 0
A20: 14 | B20: Общеобразовательная организация, имеющая спортивное оборудование и инвентарь для занятий спортивной гимнастикой | I20: 1
A21: 15 | B21: Общеобразовательная организация, имеющая спортивное оборудование и инвентарь для занятий лёгкой атлетикой | I21: 1
A22: 16 | B22: Общеобразовательная организация, имеющая спортивное оборудование и инвентарь для занятий лыжной подготовкой | I22: 1
A23: 17 | B23: Общеобразовательная организация, имеющая спортивное оборудование и инвентарь для занятий плаванием | I23: 0
A24: 18 | B24: Общеобразовательная организация, имеющая спортивное оборудование и инвентарь для занятий подвижными играми и организации спортивных мероприятий | I24: 1
A25: 19 | B25: Общеобразовательная организация, имеющая спортивное оборудование и инвентарь для занятий спортивными единоборствами (самбо, дзюдо, иное) | I25: 0
A26: 20 | B26: Имеется дополнительное вариативное оборудование и инвентарь | I26: 0
A27: 21 | B27: Кабинет учителя физической культуры | I27: 1
A28: 22 | B28: 4. Организация урочной деятельности по учебному предмету «Физическая культура»
A29: 23 | B29: Общеобразовательная организация, в которой отведено на изучение учебного предмета «Физическая культура» в недельных учебных планах 3 часа | G29: Общеобразовательная организация, в которой отведено на изучение учебного предмета «Физическая культура» в недельных учебных планах 2 часа
B30: 1 | G30: 2
A31: 24 | B31: 1
A32: 25 | B32: 5. Организация внеурочной деятельности спортивно-оздоровительного /физкультурно-спортивного направления
A33: 26 | B33: Общеобразовательная организация, в которой объём часов, отводимых на внеурочную деятельность, отсутствует | E33: Общеобразовательная организация, в которой объём часов, отводимых на внеурочную деятельность, предусматривает не более 2-х часов в неделю | H33: Общеобразовательная организация, в которой объём часов, отводимых на внеурочную деятельность, предусматривает более 2-х часов в неделю
B34: 1 | E34: 2 | H34: 3
A35: 27 | B35: 0 | E35: 0 | H35: 1
A36: 28 | B36: 6. Общеобразовательная организация, использующая в рабочей программе часы на изучение раздела «Плавание»
A37: 29 | B37: Общеобразовательная организация, использующая в рабочей программе учебные часы на изучение раздела «Плавание»
A38: 30 | B38: 3
A39: 31 | B39: 7. Сведения об обучающихся в общеобразовательной организации
A40: 32 | B40: Всего обучающихся: | C40: Обучающиеся, отнесенные к основной группе здоровья | D40: Обучающиеся, отнесённые к подготовительной группе здоровья | E40: Обучающиеся, отнесённые к специальной группе здоровья «А» | F40: Обучающиеся, отнесённые к специальной группе здоровья «Б» | G40: Обучающиеся с ограниченными возможностями здоровья | I40: Обучающихся, имеющие группу инвалидности
B45: 1 | C45: 2 | D45: 3 | E45: 4 | F45: 5 | G45: 6 | I45: 7
A46: 33 | B46: =C46+D46+E46+F46+G46+I46 -> 692 | C46: 638 | D46: 35 | E46: 12 | F46: 6 | G46: 0 | I46: 1 | K46: =B46=G6 -> TRUE
A47: 34 | B47: 8. Обучающиеся, принявшие участие во Всероссийской олимпиаде школьников по учебному предмету «Физическая культура»
A48: 35 | B48: Этап Всероссийской олимпиады | G48: Количество участников
B49: 1 | G49: 2
A50: 36 | B50: школьный | G50: 156
A51: 37 | B51: муниципальный | G51: 26
A52: 38 | B52: региональный | G52: 1
A53: 39 | B53: всероссийский | G53: 1
A54: 40 | B54: 9. Кадровый состав
A55: 41 | B55: Общее количество учителей физической культуры | C55: Имеют профессиональное образование в области физической культуры и спорта | E55: Имеют высшую квалификационную категорию | G55: Имеют первую квалификационную категорию | I55: Прошедшие обучение по дополнительным профессиональным образовательным программам повышения квалификации, программам профессиональной переподготовки в 2019\2020 учебном году
C56: Высшее образование | D56: Среднее профессиональное образование
B57: 1 | C57: 2 | D57: 3 | E57: 4 | G57: 5 | I57: 6
A58: 42 | B58: =C58+D58 -> 3 | C58: 3 | D58: 0 | E58: 1 | G58: 1 | I58: 1

Sheet тат гим
A1: № строки | B1: Мониторинг общеобразовательных организаций, реализующих общеобразовательные программы начального общего, основного общего и (или) среднего общего образования учебного предмета «Физическая культура» в 2019/2020 учебном году
A3: 1 | B3: 1. Общие сведения
A4: 2 | B4: Муниципальное бюджетное общеобразовательное учреждение "Татарская гимназия им Р.Ш. Фардиева " Заинского муниципального района Республики Татарстан | G4: Общая численность обучающихся в общеобразовательной организации
B5: 1 | G5: 2
A6: 3 | B6: =COUNTA(B4) -> 1 | G6: 361
A7: 4 | B7: 2. Спортивные объекты общеобразовательной организации
A8: 5 | B8: Всего: | C8: Спортивный зал 24х12 м и более | D8: Спортивный зал 18х9 м и менее | E8: Спортивный зал отсутствует | F8: Зал для адаптивной физической культуры | G8: Тренажёрный зал | H8: Плавательный бассейн | I8: Универсальная спортивная площадка | J8: Площадка для подвижных игр
B10: 1 | C10: 2 | D10: 3 | E10: 4 | F10: 5 | G10: 6 | H10: 7 | I10: 8 | J10: 9
A11: 6 | B11: =C11+D11+E11+F11+G11+H11+I11+J11 -> 1 | D11: 1
A12: 7 | B12: 3. Спортивное оборудование и инвентарь для организации общеобразовательной деятельности
A13: 8 | B13: Содержание раздела | I13: ВСЕГО
B14: 1 | I14: 2
A15: 9 | B15: Общеобразовательная организация, имеющая спортивное оборудование и инвентарь для занятий футболом | I15: 1
A16: 10 | B16: Общеобразовательная организация, имеющая спортивное оборудование и инвентарь для занятий баскетболом | I16: 1
A17: 11 | B17: Общеобразовательная организация, имеющая спортивное оборудование и инвентарь для занятий волейболом | I17: 1
A18: 12 | B18: Общеобразовательная организация, имеющая спортивное оборудование и инвентарь для занятий гандболом | I18: 0
A19: 13 | B19: Общеобразовательная организация, имеющая спортивное оборудование и инвентарь для занятий фитнесом, общефизической подготовкой | I19: 0
A20: 14 | B20: Общеобразовательная организация, имеющая спортивное оборудование и инвентарь для занятий спортивной гимнастикой | I20: 1
A21: 15 | B21: Общеобразовательная организация, имеющая спортивное оборудование и инвентарь для занятий лёгкой атлетикой | I21: 0
A22: 16 | B22: Общеобразовательная организация, имеющая спортивное оборудование и инвентарь для занятий лыжной подготовкой | I22: 1
A23: 17 | B23: Общеобразовательная организация, имеющая спортивное оборудование и инвентарь для занятий плаванием | I23: 0
A24: 18 | B24: Общеобразовательная организация, имеющая спортивное оборудование и инвентарь для занятий подвижными играми и организации спортивных мероприятий | I24: 1
A25: 19 | B25: Общеобразовательная организация, имеющая спортивное оборудование и инвентарь для занятий спортивными единоборствами (самбо, дзюдо, иное) | I25: 1
A26: 20 | B26: Имеется дополнительное вариативное оборудование и инвентарь | I26: 0
A27: 21 | B27: Кабинет учителя физической культуры | I27: 1
A28: 22 | B28: 4. Организация урочной деятельности по учебному предмету «Физическая культура»
A29: 23 | B29: Общеобразовательная организация, в которой отведено на изучение учебного предмета «Физическая культура» в недельных учебных планах 3 часа | G29: Общеобразовательная организация, в которой отведено на изучение учебного предмета «Физическая культура» в недельных учебных планах 2 часа
B30: 1 | G30: 2
A31: 24 | B31: 1 | G31: 0
A32: 25 | B32: 5. Организация внеурочной деятельности спортивно-оздоровительного /физкультурно-спортивного направления
A33: 26 | B33: Общеобразовательная организация, в которой объём часов, отводимых на внеурочную деятельность, отсутствует | E33: Общеобразовательная организация, в которой объём часов, отводимых на внеурочную деятельность, предусматривает не более 2-х часов в неделю | H33: Общеобразовательная организация, в которой объём часов, отводимых на внеурочную деятельность, предусматривает более 2-х часов в неделю
B34: 1 | E34: 2 | H34: 3
A35: 27 | B35: 0 | E35: 0 | H35: 1
A36: 28 | B36: 6. Общеобразовательная организация, использующая в рабочей программе часы на изучение раздела «Плавание»
A37: 29 | B37: Общеобразовательная организация, использующая в рабочей программе учебные часы на изучение раздела «Плавание»
A38: 30 | B38: 1
A39: 31 | B39: 7. Сведения об обучающихся в общеобразовательной организации
A40: 32 | B40: Всего обучающихся: | C40: Обучающиеся, отнесенные к основной группе здоровья | D40: Обучающиеся, отнесённые к подготовительной группе здоровья | E40: Обучающиеся, отнесённые к специальной группе здоровья «А» | F40: Обучающиеся, отнесённые к специальной группе здоровья «Б» | G40: Обучающиеся с ограниченными возможностями здоровья | I40: Обучающихся, имеющие группу инвалидности
B45: 1 | C45: 2 | D45: 3 | E45: 4 | F45: 5 | G45: 6 | I45: 7
A46: 33 | B46: =C46+D46+E46+F46+G46+I46 -> 361 | C46: 316 | D46: 35 | E46: 5 | F46: 0 | G46: 1 | I46: 4 | K46: =B46=G6 -> TRUE
A47: 34 | B47: 8. Обучающиеся, принявшие участие во Всероссийской олимпиаде школьников по учебному предмету «Физическая культура»
A48: 35 | B48: Этап Всероссийской олимпиады | G48: Количество участников
B49: 1 | G49: 2
A50: 36 | B50: школьный | G50: 167
A51: 37 | B51: муниципальный | G51: 20
A52: 38 | B52: региональный | G52: 0
A53: 39 | B53: всероссийский | G53: 0
A54: 40 | B54: 9. Кадровый состав
A55: 41 | B55: Общее количество учителей физической культуры | C55: Имеют профессиональное образование в области физической культуры и спорта | E55: Имеют высшую квалификационную категорию | G55: Имеют первую квалификационную категорию | I55: Прошедшие обучение по дополнительным профессиональным образовательным программам повышения квалификации, программам профессиональной переподготовки в 2019\2020 учебном году
C56: Высшее образование | D56: Среднее профессиональное образование
B57: 1 | C57: 2 | D57: 3 | E57: 4 | G57: 5 | I57: 6
A58: 42 | B58: =C58+D58 -> 2 | C58: 2 | D58: 0 | E58: 1 | G58: 1 | I58: 2

Sheet 9 шк
A1: № строки | B1: Мониторинг общеобразовательных организаций, реализующих общеобразовательные программы начального общего, основного общего и (или) среднего общего образования учебного предмета «Физическая культура» в 2019/2020 учебном году
A3: 1 | B3: 1. Общие сведения
A4: 2 | B4: Государственное бюджетное общеобразовательное учреждение "Заинская школа №9 для детей с ограниченными возможностями здоровья" Заинского муниципального района Республики Татарстан | G4: Общая численность обучающихся в общеобразовательной организации
B5: 1 | G5: 2
A6: 3 | B6: =COUNTA(B4) -> 1 | G6: 142
A7: 4 | B7: 2. Спортивные объекты общеобразовательной организации
A8: 5 | B8: Всего: | C8: Спортивный зал 24х12 м и более | D8: Спортивный зал 18х9 м и менее | E8: Спортивный зал отсутствует | F8: Зал для адаптивной физической культуры | G8: Тренажёрный зал | H8: Плавательный бассейн | I8: Универсальная спортивная площадка | J8: Площадка для подвижных игр
B10: 1 | C10: 2 | D10: 3 | E10: 4 | F10: 5 | G10: 6 | H10: 7 | I10: 8 | J10: 9
A11: 6 | B11: =C11+D11+E11+F11+G11+H11+I11+J11 -> 2 | C11: 0 | D11: 0 | E11: 1 | F11: 0 | G11: 0 | H11: 0 | I11: 0 | J11: 1
A12: 7 | B12: 3. Спортивное оборудование и инвентарь для организации общеобразовательной деятельности
A13: 8 | B13: Содержание раздела | I13: ВСЕГО
B14: 1 | I14: 2
A15: 9 | B15: Общеобразовательная организация, имеющая спортивное оборудование и инвентарь для занятий футболом | I15: 1
A16: 10 | B16: Общеобразовательная организация, имеющая спортивное оборудование и инвентарь для занятий баскетболом | I16: 1
A17: 11 | B17: Общеобразовательная организация, имеющая спортивное оборудование и инвентарь для занятий волейболом | I17: 1
A18: 12 | B18: Общеобразовательная организация, имеющая спортивное оборудование и инвентарь для занятий гандболом | I18: 0
A19: 13 | B19: Общеобразовательная организация, имеющая спортивное оборудование и инвентарь для занятий фитнесом, общефизической подготовкой | I19: 1
A20: 14 | B20: Общеобразовательная организация, имеющая спортивное оборудование и инвентарь для занятий спортивной гимнастикой | I20: 0
A21: 15 | B21: Общеобразовательная организация, имеющая спортивное оборудование и инвентарь для занятий лёгкой атлетикой | I21: 0
A22: 16 | B22: Общеобразовательная организация, имеющая спортивное оборудование и инвентарь для занятий лыжной подготовкой | I22: 1
A23: 17 | B23: Общеобразовательная организация, имеющая спортивное оборудование и инвентарь для занятий плаванием | I23: 0
A24: 18 | B24: Общеобразовательная организация, имеющая спортивное оборудование и инвентарь для занятий подвижными играми и организации спортивных мероприятий | I24: 1
A25: 19 | B25: Общеобразовательная организация, имеющая спортивное оборудование и инвентарь для занятий спортивными единоборствами (самбо, дзюдо, иное) | I25: 0
A26: 20 | B26: Имеется дополнительное вариативное оборудование и инвентарь | I26: 0
A27: 21 | B27: Кабинет учителя физической культуры | I27: 1
A28: 22 | B28: 4. Организация урочной деятельности по учебному предмету «Физическая культура»
A29: 23 | B29: Общеобразовательная организация, в которой отведено на изучение учебного предмета «Физическая культура» в недельных учебных планах 3 часа | G29: Общеобразовательная организация, в которой отведено на изучение учебного предмета «Физическая культура» в недельных учебных планах 2 часа
B30: 1 | G30: 2
A31: 24 | B31: 1 | G31: 0
A32: 25 | B32: 5. Организация внеурочной деятельности спортивно-оздоровительного /физкультурно-спортивного направления
A33: 26 | B33: Общеобразовательная организация, в которой объём часов, отводимых на внеурочную деятельность, отсутствует | E33: Общеобразовательная организация, в которой объём часов, отводимых на внеурочную деятельность, предусматривает не более 2-х часов в неделю | H33: Общеобразовательная организация, в которой объём часов, отводимых на внеурочную деятельность, предусматривает более 2-х часов в неделю
B34: 1 | E34: 2 | H34: 3
A35: 27 | B35: 0 | E35: 1 | H35: 0
A36: 28 | B36: 6. Общеобразовательная организация, использующая в рабочей программе часы на изучение раздела «Плавание»
A37: 29 | B37: Общеобразовательная организация, использующая в рабочей программе учебные часы на изучение раздела «Плавание»
A38: 30 | B38: 0
A39: 31 | B39: 7. Сведения об обучающихся в общеобразовательной организации
A40: 32 | B40: Всего обучающихся: | C40: Обучающиеся, отнесенные к основной группе здоровья | D40: Обучающиеся, отнесённые к подготовительной группе здоровья | E40: Обучающиеся, отнесённые к специальной группе здоровья «А» | F40: Обучающиеся, отнесённые к специальной группе здоровья «Б» | G40: Обучающиеся с ограниченными возможностями здоровья | I40: Обучающихся, имеющие группу инвалидности
B45: 1 | C45: 2 | D45: 3 | E45: 4 | F45: 5 | G45: 6 | I45: 7
A46: 33 | B46: =C46+D46+E46+F46+G46+I46 -> 142 | C46: 86 | D46: 15 | E46: 0 | F46: 0 | G46: 0 | I46: 41 | K46: =B46=G6 -> TRUE
A47: 34 | B47: 8. Обучающиеся, принявшие участие во Всероссийской олимпиаде школьников по учебному предмету «Физическая культура»
A48: 35 | B48: Этап Всероссийской олимпиады | G48: Количество участников
B49: 1 | G49: 2
A50: 36 | B50: школьный | G50: 0
A51: 37 | B51: муниципальный | G51: 0
A52: 38 | B52: региональный | G52: 0
A53: 39 | B53: всероссийский | G53: 0
A54: 40 | B54: 9. Кадровый состав
A55: 41 | B55: Общее количество учителей физической культуры | C55: Имеют профессиональное образование в области физической культуры и спорта | E55: Имеют высшую квалификационную категорию | G55: Имеют первую квалификационную категорию | I55: Прошедшие обучение по дополнительным профессиональным образовательным программам повышения квалификации, программам профессиональной переподготовки в 2019\2020 учебном году
C56: Высшее образование | D56: Среднее профессиональное образование
B57: 1 | C57: 2 | D57: 3 | E57: 4 | G57: 5 | I57: 6
A58: 42 | B58: =C58+D58 -> 1 | C58: 1 | D58: 0 | E58: 0 | G58: 1 | I58: 0

Sheet Аксаринская ООШ
A1: № строки | B1: Мониторинг общеобразовательных организаций, реализующих общеобразовательные программы начального общего, основного общего и (или) среднего общего образования учебного предмета «Физическая культура» в 2019/2020 учебном году
A3: 1 | B3: 1. Общие сведения
A4: 2 | B4: Муниципальное бюджетное общеобразовательное учреждение " Аксаринская основная общеобразовательная школа" Заинского муниципального района Республики Татарстан | G4: Общая численность обучающихся в общеобразовательной организации
B5: 1 | G5: 2
A6: 3 | B6: =COUNTA(B4) -> 1 | G6: 46
A7: 4 | B7: 2. Спортивные объекты общеобразовательной организации
A8: 5 | B8: Всего: | C8: Спортивный зал 24х12 м и более | D8: Спортивный зал 18х9 м и менее | E8: Спортивный зал отсутствует | F8: Зал для адаптивной физической культуры | G8: Тренажёрный зал | H8: Плавательный бассейн | I8: Универсальная спортивная площадка | J8: Площадка для подвижных игр
B10: 1 | C10: 2 | D10: 3 | E10: 4 | F10: 5 | G10: 6 | H10: 7 | I10: 8 | J10: 9
A11: 6 | B11: =C11+D11+E11+F11+G11+H11+I11+J11 -> 2 | C11: 0 | D11: 1 | E11: 0 | F11: 0 | G11: 0 | H11: 0 | I11: 1 | J11: 0
A12: 7 | B12: 3. Спортивное оборудование и инвентарь для организации общеобразовательной деятельности
A13: 8 | B13: Содержание раздела | I13: ВСЕГО
B14: 1 | I14: 2
A15: 9 | B15: Общеобразовательная организация, имеющая спортивное оборудование и инвентарь для занятий футболом | I15: 1
A16: 10 | B16: Общеобразовательная организация, имеющая спортивное оборудование и инвентарь для занятий баскетболом | I16: 1
A17: 11 | B17: Общеобразовательная организация, имеющая спортивное оборудование и инвентарь для занятий волейболом | I17: 1
A18: 12 | B18: Общеобразовательная организация, имеющая спортивное оборудование и инвентарь для занятий гандболом | I18: 0
A19: 13 | B19: Общеобразовательная организация, имеющая спортивное оборудование и инвентарь для занятий фитнесом, общефизической подготовкой | I19: 0
A20: 14 | B20: Общеобразовательная организация, имеющая спортивное оборудование и инвентарь для занятий спортивной гимнастикой | I20: 0
A21: 15 | B21: Общеобразовательная организация, имеющая спортивное оборудование и инвентарь для занятий лёгкой атлетикой | I21: 1
A22: 16 | B22: Общеобразовательная организация, имеющая спортивное оборудование и инвентарь для занятий лыжной подготовкой | I22: 1
A23: 17 | B23: Общеобразовательная организация, имеющая спортивное оборудование и инвентарь для занятий плаванием | I23: 0
A24: 18 | B24: Общеобразовательная организация, имеющая спортивное оборудование и инвентарь для занятий подвижными играми и организации спортивных мероприятий | I24: 1
A25: 19 | B25: Общеобразовательная организация, имеющая спортивное оборудование и инвентарь для занятий спортивными единоборствами (самбо, дзюдо, иное) | I25: 1
A26: 20 | B26: Имеется дополнительное вариативное оборудование и инвентарь | I26: 0
A27: 21 | B27: Кабинет учителя физической культуры | I27: 1
A28: 22 | B28: 4. Организация урочной деятельности по учебному предмету «Физическая культура»
A29: 23 | B29: Общеобразовательная организация, в которой отведено на изучение учебного предмета «Физическая культура» в недельных учебных планах 3 часа | G29: Общеобразовательная организация, в которой отведено на изучение учебного предмета «Физическая культура» в недельных учебных планах 2 часа
B30: 1 | G30: 2
A31: 24 | B31: 1 | G31: 0
A32: 25 | B32: 5. Организация внеурочной деятельности спортивно-оздоровительного /физкультурно-спортивного направления
A33: 26 | B33: Общеобразовательная организация, в которой объём часов, отводимых на внеурочную деятельность, отсутствует | E33: Общеобразовательная организация, в которой объём часов, отводимых на внеурочную деятельность, предусматривает не более 2-х часов в неделю | H33: Общеобразовательная организация, в которой объём часов, отводимых на внеурочную деятельность, предусматривает более 2-х часов в неделю
B34: 1 | E34: 2 | H34: 3
A35: 27 | B35: 0 | E35: 1 | H35: 0
A36: 28 | B36: 6. Общеобразовательная организация, использующая в рабочей программе часы на изучение раздела «Плавание»
A37: 29 | B37: Общеобразовательная организация, использующая в рабочей программе учебные часы на изучение раздела «Плавание»
A38: 30 | B38: 1
A39: 31 | B39: 7. Сведения об обучающихся в общеобразовательной организации
A40: 32 | B40: Всего обучающихся: | C40: Обучающиеся, отнесенные к основной группе здоровья | D40: Обучающиеся, отнесённые к подготовительной группе здоровья | E40: Обучающиеся, отнесённые к специальной группе здоровья «А» | F40: Обучающиеся, отнесённые к специальной группе здоровья «Б» | G40: Обучающиеся с ограниченными возможностями здоровья | I40: Обучающихся, имеющие группу инвалидности
B45: 1 | C45: 2 | D45: 3 | E45: 4 | F45: 5 | G45: 6 | I45: 7
A46: 33 | B46: =C46+D46+E46+F46+G46+I46 -> 46 | C46: 46 | D46: 0 | E46: 0 | F46: 0 | G46: 0 | I46: 0 | K46: =B46=G6 -> TRUE
A47: 34 | B47: 8. Обучающиеся, принявшие участие во Всероссийской олимпиаде школьников по учебному предмету «Физическая культура»
A48: 35 | B48: Этап Всероссийской олимпиады | G48: Количество участников
B49: 1 | G49: 2
A50: 36 | B50: школьный | G50: 21
A51: 37 | B51: муниципальный | G51: 1
A52: 38 | B52: региональный | G52: 0
A53: 39 | B53: всероссийский | G53: 0
A54: 40 | B54: 9. Кадровый состав
A55: 41 | B55: Общее количество учителей физической культуры | C55: Имеют профессиональное образование в области физической культуры и спорта | E55: Имеют высшую квалификационную категорию | G55: Имеют первую квалификационную категорию | I55: Прошедшие обучение по дополнительным профессиональным образовательным программам повышения квалификации, программам профессиональной переподготовки в 2019\2020 учебном году
C56: Высшее образование | D56: Среднее профессиональное образование
B57: 1 | C57: 2 | D57: 3 | E57: 4 | G57: 5 | I57: 6
A58: 42 | B58: =C58+D58 -> 1 | C58: 1 | D58: 0 | E58: 0 | G58: 1 | I58: 1

Sheet Верхнешипкинская ООШ
A1: № строки | B1: Мониторинг общеобразовательных организаций, реализующих общеобразовательные программы начального общего, основного общего и (или) среднего общего образования учебного предмета «Физическая культура» в 2019/2020 учебном году
A3: 1 | B3: 1. Общие сведения
A4: 2 | B4: Муниципальное бюджетное общеобразовательное учреждение "Верхнешипкинская основная общеобразовательная школа" Заинского муниципального района Республики Татарстан | G4: Общая численность обучающихся в общеобразовательной организации
B5: 1 | G5: 2
A6: 3 | B6: =COUNTA(B4) -> 1 | G6: 47
A7: 4 | B7: 2. Спортивные объекты общеобразовательной организации
A8: 5 | B8: Всего: | C8: Спортивный зал 24х12 м и более | D8: Спортивный зал 18х9 м и менее | E8: Спортивный зал отсутствует | F8: Зал для адаптивной физической культуры | G8: Тренажёрный зал | H8: Плавательный бассейн | I8: Универсальная спортивная площадка | J8: Площадка для подвижных игр
B10: 1 | C10: 2 | D10: 3 | E10: 4 | F10: 5 | G10: 6 | H10: 7 | I10: 8 | J10: 9
A11: 6 | B11: =C11+D11+E11+F11+G11+H11+I11+J11 -> 2 | C11: 0 | D11: 1 | F11: 0 | G11: 0 | H11: 0 | I11: 1 | J11: 0
A12: 7 | B12: 3. Спортивное оборудование и инвентарь для организации общеобразовательной деятельности
A13: 8 | B13: Содержание раздела | I13: ВСЕГО
B14: 1 | I14: 2
A15: 9 | B15: Общеобразовательная организация, имеющая спортивное оборудование и инвентарь для занятий футболом | I15: 1
A16: 10 | B16: Общеобразовательная организация, имеющая спортивное оборудование и инвентарь для занятий баскетболом | I16: 1
A17: 11 | B17: Общеобразовательная организация, имеющая спортивное оборудование и инвентарь для занятий волейболом | I17: 1
A18: 12 | B18: Общеобразовательная организация, имеющая спортивное оборудование и инвентарь для занятий гандболом | I18: 0
A19: 13 | B19: Общеобразовательная организация, имеющая спортивное оборудование и инвентарь для занятий фитнесом, общефизической подготовкой | I19: 0
A20: 14 | B20: Общеобразовательная организация, имеющая спортивное оборудование и инвентарь для занятий спортивной гимнастикой | I20: 1
A21: 15 | B21: Общеобразовательная организация, имеющая спортивное оборудование и инвентарь для занятий лёгкой атлетикой | I21: 1
A22: 16 | B22: Общеобразовательная организация, имеющая спортивное оборудование и инвентарь для занятий лыжной подготовкой | I22: 1
A23: 17 | B23: Общеобразовательная организация, имеющая спортивное оборудование и инвентарь для занятий плаванием | I23: 0
A24: 18 | B24: Общеобразовательная организация, имеющая спортивное оборудование и инвентарь для занятий подвижными играми и организации спортивных мероприятий
A25: 19 | B25: Общеобразовательная организация, имеющая спортивное оборудование и инвентарь для занятий спортивными единоборствами (самбо, дзюдо, иное) | I25: 1
A26: 20 | B26: Имеется дополнительное вариативное оборудование и инвентарь | I26: 0
A27: 21 | B27: Кабинет учителя физической культуры | I27: 1
A28: 22 | B28: 4. Организация урочной деятельности по учебному предмету «Физическая культура»
A29: 23 | B29: Общеобразовательная организация, в которой отведено на изучение учебного предмета «Физическая культура» в недельных учебных планах 3 часа | G29: Общеобразовательная организация, в которой отведено на изучение учебного предмета «Физическая культура» в недельных учебных планах 2 часа
B30: 1 | G30: 2
A31: 24 | B31: 1
A32: 25 | B32: 5. Организация внеурочной деятельности спортивно-оздоровительного /физкультурно-спортивного направления
A33: 26 | B33: Общеобразовательная организация, в которой объём часов, отводимых на внеурочную деятельность, отсутствует | E33: Общеобразовательная организация, в которой объём часов, отводимых на внеурочную деятельность, предусматривает не более 2-х часов в неделю | H33: Общеобразовательная организация, в которой объём часов, отводимых на внеурочную деятельность, предусматривает более 2-х часов в неделю
B34: 1 | E34: 2 | H34: 3
A35: 27 | B35: 1 | E35: 0 | H35: 0
A36: 28 | B36: 6. Общеобразовательная организация, использующая в рабочей программе часы на изучение раздела «Плавание»
A37: 29 | B37: Общеобразовательная организация, использующая в рабочей программе учебные часы на изучение раздела «Плавание»
A38: 30 | B38: 3
A39: 31 | B39: 7. Сведения об обучающихся в общеобразовательной организации
A40: 32 | B40: Всего обучающихся: | C40: Обучающиеся, отнесенные к основной группе здоровья | D40: Обучающиеся, отнесённые к подготовительной группе здоровья | E40: Обучающиеся, отнесённые к специальной группе здоровья «А» | F40: Обучающиеся, отнесённые к специальной группе здоровья «Б» | G40: Обучающиеся с ограниченными возможностями здоровья | I40: Обучающихся, имеющие группу инвалидности
B45: 1 | C45: 2 | D45: 3 | E45: 4 | F45: 5 | G45: 6 | I45: 7
A46: 33 | B46: =C46+D46+E46+F46+G46+I46 -> 47 | C46: 43 | D46: 2 | G46: 1 | I46: 1 | K46: =B46=G6 -> TRUE
A47: 34 | B47: 8. Обучающиеся, принявшие участие во Всероссийской олимпиаде школьников по учебному предмету «Физическая культура»
A48: 35 | B48: Этап Всероссийской олимпиады | G48: Количество участников
B49: 1 | G49: 2
A50: 36 | B50: школьный | G50: 43
A51: 37 | B51: муниципальный | G51: 3
A52: 38 | B52: региональный | G52: 0
A53: 39 | B53: всероссийский | G53: 0
A54: 40 | B54: 9. Кадровый состав
A55: 41 | B55: Общее количество учителей физической культуры | C55: Имеют профессиональное образование в области физической культуры и спорта | E55: Имеют высшую квалификационную категорию | G55: Имеют первую квалификационную категорию | I55: Прошедшие обучение по дополнительным профессиональным образовательным программам повышения квалификации, программам профессиональной переподготовки в 2019\2020 учебном году
C56: Высшее образование | D56: Среднее профессиональное образование
B57: 1 | C57: 2 | D57: 3 | E57: 4 | G57: 5 | I57: 6
A58: 42 | B58: =C58+D58 -> 1 | C58: 1 | G58: 1

Sheet Светлоозерская ООШ
A1: № строки | B1: Мониторинг общеобразовательных организаций, реализующих общеобразовательные программы начального общего, основного общего и (или) среднего общего образования учебного предмета «Физическая культура» в 2019/2020 учебном году
A3: 1 | B3: 1. Общие сведения
A4: 2 | B4: Муниципальное бюджетное общеобразовательное учреждение "Светлоозерская основная общеобразовательная школа" Заинского муниципального района Республики Татарстан | G4: Общая численность обучающихся в общеобразовательной организации
B5: 1 | G5: 2
A6: 3 | B6: =COUNTA(B4) -> 1 | G6: 47
A7: 4 | B7: 2. Спортивные объекты общеобразовательной организации
A8: 5 | B8: Всего: | C8: Спортивный зал 24х12 м и более | D8: Спортивный зал 18х9 м и менее | E8: Спортивный зал отсутствует | F8: Зал для адаптивной физической культуры | G8: Тренажёрный зал | H8: Плавательный бассейн | I8: Универсальная спортивная площадка | J8: Площадка для подвижных игр
B10: 1 | C10: 2 | D10: 3 | E10: 4 | F10: 5 | G10: 6 | H10: 7 | I10: 8 | J10: 9
A11: 6 | B11: =C11+D11+E11+F11+G11+H11+I11+J11 -> 2 | C11: 0 | D11: 1 | E11: 0 | F11: 0 | G11: 0 | H11: 0 | I11: 0 | J11: 1
A12: 7 | B12: 3. Спортивное оборудование и инвентарь для организации общеобразовательной деятельности
A13: 8 | B13: Содержание раздела | I13: ВСЕГО
B14: 1 | I14: 2
A15: 9 | B15: Общеобразовательная организация, имеющая спортивное оборудование и инвентарь для занятий футболом | I15: 0
A16: 10 | B16: Общеобразовательная организация, имеющая спортивное оборудование и инвентарь для занятий баскетболом | I16: 1
A17: 11 | B17: Общеобразовательная организация, имеющая спортивное оборудование и инвентарь для занятий волейболом | I17: 1
A18: 12 | B18: Общеобразовательная организация, имеющая спортивное оборудование и инвентарь для занятий гандболом | I18: 0
A19: 13 | B19: Общеобразовательная организация, имеющая спортивное оборудование и инвентарь для занятий фитнесом, общефизической подготовкой | I19: 0
A20: 14 | B20: Общеобразовательная организация, имеющая спортивное оборудование и инвентарь для занятий спортивной гимнастикой | I20: 0
A21: 15 | B21: Общеобразовательная организация, имеющая спортивное оборудование и инвентарь для занятий лёгкой атлетикой | I21: 0
A22: 16 | B22: Общеобразовательная организация, имеющая спортивное оборудование и инвентарь для занятий лыжной подготовкой | I22: 1
A23: 17 | B23: Общеобразовательная организация, имеющая спортивное оборудование и инвентарь для занятий плаванием | I23: 0
A24: 18 | B24: Общеобразовательная организация, имеющая спортивное оборудование и инвентарь для занятий подвижными играми и организации спортивных мероприятий | I24: 1
A25: 19 | B25: Общеобразовательная организация, имеющая спортивное оборудование и инвентарь для занятий спортивными единоборствами (самбо, дзюдо, иное) | I25: 0
A26: 20 | B26: Имеется дополнительное вариативное оборудование и инвентарь | I26: 0
A27: 21 | B27: Кабинет учителя физической культуры | I27: 1
A28: 22 | B28: 4. Организация урочной деятельности по учебному предмету «Физическая культура»
A29: 23 | B29: Общеобразовательная организация, в которой отведено на изучение учебного предмета «Физическая культура» в недельных учебных планах 3 часа | G29: Общеобразовательная организация, в которой отведено на изучение учебного предмета «Физическая культура» в недельных учебных планах 2 часа
B30: 1 | G30: 2
A31: 24 | B31: 1 | G31: 0
A32: 25 | B32: 5. Организация внеурочной деятельности спортивно-оздоровительного /физкультурно-спортивного направления
A33: 26 | B33: Общеобразовательная организация, в которой объём часов, отводимых на внеурочную деятельность, отсутствует | E33: Общеобразовательная организация, в которой объём часов, отводимых на внеурочную деятельность, предусматривает не более 2-х часов в неделю | H33: Общеобразовательная организация, в которой объём часов, отводимых на внеурочную деятельность, предусматривает более 2-х часов в неделю
B34: 1 | E34: 2 | H34: 3
A35: 27 | B35: 0 | E35: 0 | H35: 1
A36: 28 | B36: 6. Общеобразовательная организация, использующая в рабочей программе часы на изучение раздела «Плавание»
A37: 29 | B37: Общеобразовательная организация, использующая в рабочей программе учебные часы на изучение раздела «Плавание»
A38: 30 | B38: 3
A39: 31 | B39: 7. Сведения об обучающихся в общеобразовательной организации
A40: 32 | B40: Всего обучающихся: | C40: Обучающиеся, отнесенные к основной группе здоровья | D40: Обучающиеся, отнесённые к подготовительной группе здоровья | E40: Обучающиеся, отнесённые к специальной группе здоровья «А» | F40: Обучающиеся, отнесённые к специальной группе здоровья «Б» | G40: Обучающиеся с ограниченными возможностями здоровья | I40: Обучающихся, имеющие группу инвалидности
B45: 1 | C45: 2 | D45: 3 | E45: 4 | F45: 5 | G45: 6 | I45: 7
A46: 33 | B46: =C46+D46+E46+F46+G46+I46 -> 47 | C46: 40 | D46: 6 | E46: 0 | F46: 1 | G46: 0 | I46: 0 | K46: =B46=G6 -> TRUE
A47: 34 | B47: 8. Обучающиеся, принявшие участие во Всероссийской олимпиаде школьников по учебному предмету «Физическая культура»
A48: 35 | B48: Этап Всероссийской олимпиады | G48: Количество участников
B49: 1 | G49: 2
A50: 36 | B50: школьный | G50: 12
A51: 37 | B51: муниципальный | G51: 3
A52: 38 | B52: региональный | G52: 0
A53: 39 | B53: всероссийский | G53: 0
A54: 40 | B54: 9. Кадровый состав
A55: 41 | B55: Общее количество учителей физической культуры | C55: Имеют профессиональное образование в области физической культуры и спорта | E55: Имеют высшую квалификационную категорию | G55: Имеют первую квалификационную категорию | I55: Прошедшие обучение по дополнительным профессиональным образовательным программам повышения квалификации, программам профессиональной переподготовки в 2019\2020 учебном году
C56: Высшее образование | D56: Среднее профессиональное образование
B57: 1 | C57: 2 | D57: 3 | E57: 4 | G57: 5 | I57: 6
A58: 42 | B58: =C58+D58 -> 1 | C58: 1 | D58: 0 | E58: 0 | G58: 1 | I58: 0

Sheet Поручиковская ООШ
A1: № строки | B1: Мониторинг общеобразовательных организаций, реализующих общеобразовательные программы начального общего, основного общего и (или) среднего общего образования учебного предмета «Физическая культура» в 2019/2020 учебном году
A3: 1 | B3: 1. Общие сведения
A4: 2 | B4: Муниципальное бюджетное общеобразовательное учреждение "Поручиковская основная общеобразовательная школа" Заинского муниципального района Республики Татарстан | G4: Общая численность обучающихся в общеобразовательной организации
B5: 1 | G5: 2
A6: 3 | B6: =COUNTA(B4) -> 1 | G6: 52
A7: 4 | B7: 2. Спортивные объекты общеобразовательной организации
A8: 5 | B8: Всего: | C8: Спортивный зал 24х12 м и более | D8: Спортивный зал 18х9 м и менее | E8: Спортивный зал отсутствует | F8: Зал для адаптивной физической культуры | G8: Тренажёрный зал | H8: Плавательный бассейн | I8: Универсальная спортивная площадка | J8: Площадка для подвижных игр
B10: 1 | C10: 2 | D10: 3 | E10: 4 | F10: 5 | G10: 6 | H10: 7 | I10: 8 | J10: 9
A11: 6 | B11: =C11+D11+E11+F11+G11+H11+I11+J11 -> 2 | D11: 1 | I11: 1
A12: 7 | B12: 3. Спортивное оборудование и инвентарь для организации общеобразовательной деятельности
A13: 8 | B13: Содержание раздела | I13: ВСЕГО
B14: 1 | I14: 2
A15: 9 | B15: Общеобразовательная организация, имеющая спортивное оборудование и инвентарь для занятий футболом | I15: 0
A16: 10 | B16: Общеобразовательная организация, имеющая спортивное оборудование и инвентарь для занятий баскетболом | I16: 1
A17: 11 | B17: Общеобразовательная организация, имеющая спортивное оборудование и инвентарь для занятий волейболом | I17: 1
A18: 12 | B18: Общеобразовательная организация, имеющая спортивное оборудование и инвентарь для занятий гандболом | I18: 0
A19: 13 | B19: Общеобразовательная организация, имеющая спортивное оборудование и инвентарь для занятий фитнесом, общефизической подготовкой | I19: 0
A20: 14 | B20: Общеобразовательная организация, имеющая спортивное оборудование и инвентарь для занятий спортивной гимнастикой | I20: 1
A21: 15 | B21: Общеобразовательная организация, имеющая спортивное оборудование и инвентарь для занятий лёгкой атлетикой | I21: 0
A22: 16 | B22: Общеобразовательная организация, имеющая спортивное оборудование и инвентарь для занятий лыжной подготовкой | I22: 0
A23: 17 | B23: Общеобразовательная организация, имеющая спортивное оборудование и инвентарь для занятий плаванием | I23: 0
A24: 18 | B24: Общеобразовательная организация, имеющая спортивное оборудование и инвентарь для занятий подвижными играми и организации спортивных мероприятий | I24: 0
A25: 19 | B25: Общеобразовательная организация, имеющая спортивное оборудование и инвентарь для занятий спортивными единоборствами (самбо, дзюдо, иное) | I25: 0
A26: 20 | B26: Имеется дополнительное вариативное оборудование и инвентарь | I26: 0
A27: 21 | B27: Кабинет учителя физической культуры | I27: 1
A28: 22 | B28: 4. Организация урочной деятельности по учебному предмету «Физическая культура»
A29: 23 | B29: Общеобразовательная организация, в которой отведено на изучение учебного предмета «Физическая культура» в недельных учебных планах 3 часа | G29: Общеобразовательная организация, в которой отведено на изучение учебного предмета «Физическая культура» в недельных учебных планах 2 часа
B30: 1 | G30: 2
A31: 24 | B31: 1 | G31: 0
A32: 25 | B32: 5. Организация внеурочной деятельности спортивно-оздоровительного /физкультурно-спортивного направления
A33: 26 | B33: Общеобразовательная организация, в которой объём часов, отводимых на внеурочную деятельность, отсутствует | E33: Общеобразовательная организация, в которой объём часов, отводимых на внеурочную деятельность, предусматривает не более 2-х часов в неделю | H33: Общеобразовательная организация, в которой объём часов, отводимых на внеурочную деятельность, предусматривает более 2-х часов в неделю
B34: 1 | E34: 2 | H34: 3
A35: 27 | B35: 0 | E35: 1
A36: 28 | B36: 6. Общеобразовательная организация, использующая в рабочей программе часы на изучение раздела «Плавание»
A37: 29 | B37: Общеобразовательная организация, использующая в рабочей программе учебные часы на изучение раздела «Плавание»
A38: 30 | B38: 3
A39: 31 | B39: 7. Сведения об обучающихся в общеобразовательной организации
A40: 32 | B40: Всего обучающихся: | C40: Обучающиеся, отнесенные к основной группе здоровья | D40: Обучающиеся, отнесённые к подготовительной группе здоровья | E40: Обучающиеся, отнесённые к специальной группе здоровья «А» | F40: Обучающиеся, отнесённые к специальной группе здоровья «Б» | G40: Обучающиеся с ограниченными возможностями здоровья | I40: Обучающихся, имеющие группу инвалидности
B45: 1 | C45: 2 | D45: 3 | E45: 4 | F45: 5 | G45: 6 | I45: 7
A46: 33 | B46: =C46+D46+E46+F46+G46+I46 -> 52 | C46: 30 | D46: 22 | K46: =B46=G6 -> TRUE
A47: 34 | B47: 8. Обучающиеся, принявшие участие во Всероссийской олимпиаде школьников по учебному предмету «Физическая культура»
A48: 35 | B48: Этап Всероссийской олимпиады | G48: Количество участников
B49: 1 | G49: 2
A50: 36 | B50: школьный | G50: 15
A51: 37 | B51: муниципальный | G51: 0
A52: 38 | B52: региональный | G52: 0
A53: 39 | B53: всероссийский | G53: 0
A54: 40 | B54: 9. Кадровый состав
A55: 41 | B55: Общее количество учителей физической культуры | C55: Имеют профессиональное образование в области физической культуры и спорта | E55: Имеют высшую квалификационную категорию | G55: Имеют первую квалификационную категорию | I55: Прошедшие обучение по дополнительным профессиональным образовательным программам повышения квалификации, программам профессиональной переподготовки в 2019\2020 учебном году
C56: Высшее образование | D56: Среднее профессиональное образование
B57: 1 | C57: 2 | D57: 3 | E57: 4 | G57: 5 | I57: 6
A58: 42 | B58: =C58+D58 -> 1 | C58: 1

Sheet Тюгеевская ООШ
A1: № строки | B1: Мониторинг общеобразовательных организаций, реализующих общеобразовательные программы начального общего, основного общего и (или) среднего общего образования учебного предмета «Физическая культура» в 2019/2020 учебном году
A3: 1 | B3: 1. Общие сведения
A4: 2 | B4: Муниципальное бюджетное общеобразовательное учреждение "Тюгеевская основная общеобразовательная школа" Заинского муниципального района Республики Татарстан | G4: Общая численность обучающихся в общеобразовательной организации
B5: 1 | G5: 2
A6: 3 | B6: =COUNTA(B4) -> 1 | G6: 36
A7: 4 | B7: 2. Спортивные объекты общеобразовательной организации
A8: 5 | B8: Всего: | C8: Спортивный зал 24х12 м и более | D8: Спортивный зал 18х9 м и менее | E8: Спортивный зал отсутствует | F8: Зал для адаптивной физической культуры | G8: Тренажёрный зал | H8: Плавательный бассейн | I8: Универсальная спортивная площадка | J8: Площадка для подвижных игр
B10: 1 | C10: 2 | D10: 3 | E10: 4 | F10: 5 | G10: 6 | H10: 7 | I10: 8 | J10: 9
A11: 6 | B11: =C11+D11+E11+F11+G11+H11+I11+J11 -> 2 | C11: 0 | D11: 1 | E11: 0 | F11: 0 | G11: 0 | H11: 0 | I11: 0 | J11: 1
A12: 7 | B12: 3. Спортивное оборудование и инвентарь для организации общеобразовательной деятельности
A13: 8 | B13: Содержание раздела | I13: ВСЕГО
B14: 1 | I14: 2
A15: 9 | B15: Общеобразовательная организация, имеющая спортивное оборудование и инвентарь для занятий футболом | I15: 0
A16: 10 | B16: Общеобразовательная организация, имеющая спортивное оборудование и инвентарь для занятий баскетболом | I16: 1
A17: 11 | B17: Общеобразовательная организация, имеющая спортивное оборудование и инвентарь для занятий волейболом | I17: 1
A18: 12 | B18: Общеобразовательная организация, имеющая спортивное оборудование и инвентарь для занятий гандболом | I18: 0
A19: 13 | B19: Общеобразовательная организация, имеющая спортивное оборудование и инвентарь для занятий фитнесом, общефизической подготовкой | I19: 0
A20: 14 | B20: Общеобразовательная организация, имеющая спортивное оборудование и инвентарь для занятий спортивной гимнастикой | I20: 0
A21: 15 | B21: Общеобразовательная организация, имеющая спортивное оборудование и инвентарь для занятий лёгкой атлетикой | I21: 1
A22: 16 | B22: Общеобразовательная организация, имеющая спортивное оборудование и инвентарь для занятий лыжной подготовкой | I22: 1
A23: 17 | B23: Общеобразовательная организация, имеющая спортивное оборудование и инвентарь для занятий плаванием | I23: 0
A24: 18 | B24: Общеобразовательная организация, имеющая спортивное оборудование и инвентарь для занятий подвижными играми и организации спортивных мероприятий | I24: 1
A25: 19 | B25: Общеобразовательная организация, имеющая спортивное оборудование и инвентарь для занятий спортивными единоборствами (самбо, дзюдо, иное) | I25: 0
A26: 20 | B26: Имеется дополнительное вариативное оборудование и инвентарь | I26: 0
A27: 21 | B27: Кабинет учителя физической культуры | I27: 1
A28: 22 | B28: 4. Организация урочной деятельности по учебному предмету «Физическая культура»
A29: 23 | B29: Общеобразовательная организация, в которой отведено на изучение учебного предмета «Физическая культура» в недельных учебных планах 3 часа | G29: Общеобразовательная организация, в которой отведено на изучение учебного предмета «Физическая культура» в недельных учебных планах 2 часа
B30: 1 | G30: 2
A31: 24 | B31: 1 | G31: 0
A32: 25 | B32: 5. Организация внеурочной деятельности спортивно-оздоровительного /физкультурно-спортивного направления
A33: 26 | B33: Общеобразовательная организация, в которой объём часов, отводимых на внеурочную деятельность, отсутствует | E33: Общеобразовательная организация, в которой объём часов, отводимых на внеурочную деятельность, предусматривает не более 2-х часов в неделю | H33: Общеобразовательная организация, в которой объём часов, отводимых на внеурочную деятельность, предусматривает более 2-х часов в неделю
B34: 1 | E34: 2 | H34: 3
A35: 27 | B35: 0 | E35: 1 | H35: 0
A36: 28 | B36: 6. Общеобразовательная организация, использующая в рабочей программе часы на изучение раздела «Плавание»
A37: 29 | B37: Общеобразовательная организация, использующая в рабочей программе учебные часы на изучение раздела «Плавание»
A38: 30 | B38: 3
A39: 31 | B39: 7. Сведения об обучающихся в общеобразовательной организации
A40: 32 | B40: Всего обучающихся: | C40: Обучающиеся, отнесенные к основной группе здоровья | D40: Обучающиеся, отнесённые к подготовительной группе здоровья | E40: Обучающиеся, отнесённые к специальной группе здоровья «А» | F40: Обучающиеся, отнесённые к специальной группе здоровья «Б» | G40: Обучающиеся с ограниченными возможностями здоровья | I40: Обучающихся, имеющие группу инвалидности
B45: 1 | C45: 2 | D45: 3 | E45: 4 | F45: 5 | G45: 6 | I45: 7
A46: 33 | B46: =C46+D46+E46+F46+G46+I46 -> 36 | C46: 36 | D46: 0 | E46: 0 | F46: 0 | G46: 0 | I46: 0 | K46: =B46=G6 -> TRUE
A47: 34 | B47: 8. Обучающиеся, принявшие участие во Всероссийской олимпиаде школьников по учебному предмету «Физическая культура»
A48: 35 | B48: Этап Всероссийской олимпиады | G48: Количество участников
B49: 1 | G49: 2
A50: 36 | B50: школьный | G50: 15
A51: 37 | B51: муниципальный | G51: 2
A52: 38 | B52: региональный | G52: 0
A53: 39 | B53: всероссийский | G53: 0
A54: 40 | B54: 9. Кадровый состав
A55: 41 | B55: Общее количество учителей физической культуры | C55: Имеют профессиональное образование в области физической культуры и спорта | E55: Имеют высшую квалификационную категорию | G55: Имеют первую квалификационную категорию | I55: Прошедшие обучение по дополнительным профессиональным образовательным программам повышения квалификации, программам профессиональной переподготовки в 2019\2020 учебном году
C56: Высшее образование | D56: Среднее профессиональное образование
B57: 1 | C57: 2 | D57: 3 | E57: 4 | G57: 5 | I57: 6
A58: 42 | B58: =C58+D58 -> 2 | C58: 2 | D58: 0 | E58: 0 | G58: 2 | I58: 2

Sheet Чубуклинская ООШ
A1: № строки | B1: Мониторинг общеобразовательных организаций, реализующих общеобразовательные программы начального общего, основного общего и (или) среднего общего образования учебного предмета «Физическая культура» в 2019/2020 учебном году
A3: 1 | B3: 1. Общие сведения
A4: 2 | B4: Муниципальное бюджетное общеобразовательное учреждение "Чубуклинская основная общеобразовательная школа" Заинского муниципального района Республики Татарстан | G4: Общая численность обучающихся в общеобразовательной организации
B5: 1 | G5: 2
A6: 3 | B6: =COUNTA(B4) -> 1 | G6: 34
A7: 4 | B7: 2. Спортивные объекты общеобразовательной организации
A8: 5 | B8: Всего: | C8: Спортивный зал 24х12 м и более | D8: Спортивный зал 18х9 м и менее | E8: Спортивный зал отсутствует | F8: Зал для адаптивной физической культуры | G8: Тренажёрный зал | H8: Плавательный бассейн | I8: Универсальная спортивная площадка | J8: Площадка для подвижных игр
B10: 1 | C10: 2 | D10: 3 | E10: 4 | F10: 5 | G10: 6 | H10: 7 | I10: 8 | J10: 9
A11: 6 | B11: =C11+D11+E11+F11+G11+H11+I11+J11 -> 2 | D11: 1 | I11: 1
A12: 7 | B12: 3. Спортивное оборудование и инвентарь для организации общеобразовательной деятельности
A13: 8 | B13: Содержание раздела | I13: ВСЕГО
B14: 1 | I14: 2
A15: 9 | B15: Общеобразовательная организация, имеющая спортивное оборудование и инвентарь для занятий футболом | I15: 1
A16: 10 | B16: Общеобразовательная организация, имеющая спортивное оборудование и инвентарь для занятий баскетболом | I16: 1
A17: 11 | B17: Общеобразовательная организация, имеющая спортивное оборудование и инвентарь для занятий волейболом | I17: 1
A18: 12 | B18: Общеобразовательная организация, имеющая спортивное оборудование и инвентарь для занятий гандболом | I18: 0
A19: 13 | B19: Общеобразовательная организация, имеющая спортивное оборудование и инвентарь для занятий фитнесом, общефизической подготовкой | I19: 0
A20: 14 | B20: Общеобразовательная организация, имеющая спортивное оборудование и инвентарь для занятий спортивной гимнастикой | I20: 0
A21: 15 | B21: Общеобразовательная организация, имеющая спортивное оборудование и инвентарь для занятий лёгкой атлетикой | I21: 0
A22: 16 | B22: Общеобразовательная организация, имеющая спортивное оборудование и инвентарь для занятий лыжной подготовкой | I22: 1
A23: 17 | B23: Общеобразовательная организация, имеющая спортивное оборудование и инвентарь для занятий плаванием | I23: 0
A24: 18 | B24: Общеобразовательная организация, имеющая спортивное оборудование и инвентарь для занятий подвижными играми и организации спортивных мероприятий | I24: 0
A25: 19 | B25: Общеобразовательная организация, имеющая спортивное оборудование и инвентарь для занятий спортивными единоборствами (самбо, дзюдо, иное) | I25: 0
A26: 20 | B26: Имеется дополнительное вариативное оборудование и инвентарь | I26: 0
A27: 21 | B27: Кабинет учителя физической культуры | I27: 1
A28: 22 | B28: 4. Организация урочной деятельности по учебному предмету «Физическая культура»
A29: 23 | B29: Общеобразовательная организация, в которой отведено на изучение учебного предмета «Физическая культура» в недельных учебных планах 3 часа | G29: Общеобразовательная организация, в которой отведено на изучение учебного предмета «Физическая культура» в недельных учебных планах 2 часа
B30: 1 | G30: 2
A31: 24 | B31: 1 | G31: 0
A32: 25 | B32: 5. Организация внеурочной деятельности спортивно-оздоровительного /физкультурно-спортивного направления
A33: 26 | B33: Общеобразовательная организация, в которой объём часов, отводимых на внеурочную деятельность, отсутствует | E33: Общеобразовательная организация, в которой объём часов, отводимых на внеурочную деятельность, предусматривает не более 2-х часов в неделю | H33: Общеобразовательная организация, в которой объём часов, отводимых на внеурочную деятельность, предусматривает более 2-х часов в неделю
B34: 1 | E34: 2 | H34: 3
A35: 27 | B35: 0 | E35: 1
A36: 28 | B36: 6. Общеобразовательная организация, использующая в рабочей программе часы на изучение раздела «Плавание»
A37: 29 | B37: Общеобразовательная организация, использующая в рабочей программе учебные часы на изучение раздела «Плавание»
A38: 30 | B38: 3
A39: 31 | B39: 7. Сведения об обучающихся в общеобразовательной организации
A40: 32 | B40: Всего обучающихся: | C40: Обучающиеся, отнесенные к основной группе здоровья | D40: Обучающиеся, отнесённые к подготовительной группе здоровья | E40: Обучающиеся, отнесённые к специальной группе здоровья «А» | F40: Обучающиеся, отнесённые к специальной группе здоровья «Б» | G40: Обучающиеся с ограниченными возможностями здоровья | I40: Обучающихся, имеющие группу инвалидности
B45: 1 | C45: 2 | D45: 3 | E45: 4 | F45: 5 | G45: 6 | I45: 7
A46: 33 | B46: =C46+D46+E46+F46+G46+I46 -> 34 | C46: 29 | D46: 5 | K46: =B46=G6 -> TRUE
A47: 34 | B47: 8. Обучающиеся, принявшие участие во Всероссийской олимпиаде школьников по учебному предмету «Физическая культура»
A48: 35 | B48: Этап Всероссийской олимпиады | G48: Количество участников
B49: 1 | G49: 2
A50: 36 | B50: школьный | G50: 18
A51: 37 | B51: муниципальный | G51: 3
A52: 38 | B52: региональный | G52: 0
A53: 39 | B53: всероссийский | G53: 0
A54: 40 | B54: 9. Кадровый состав
A55: 41 | B55: Общее количество учителей физической культуры | C55: Имеют профессиональное образование в области физической культуры и спорта | E55: Имеют высшую квалификационную категорию | G55: Имеют первую квалификационную категорию | I55: Прошедшие обучение по дополнительным профессиональным образовательным программам повышения квалификации, программам профессиональной переподготовки в 2019\2020 учебном году
C56: Высшее образование | D56: Среднее профессиональное образование
B57: 1 | C57: 2 | D57: 3 | E57: 4 | G57: 5 | I57: 6
A58: 42 | B58: =C58+D58 -> 1 | D58: 1 | G58: 1

Sheet Савалеевская СОШ
A1: № строки | B1: Мониторинг общеобразовательных организаций, реализующих общеобразовательные программы начального общего, основного общего и (или) среднего общего образования учебного предмета «Физическая культура» в 2019/2020 учебном году
A3: 1 | B3: 1. Общие сведения
A4: 2 | B4: Муниципальное бюджетное общеобразовательное учреждение «Савалеевская средняя общеобразовательная школа» Заинского муниципального района Республика Татарстан | G4: Общая численность обучающихся в общеобразовательной организации
B5: 1 | G5: 2
A6: 3 | B6: =COUNTA(B4) -> 1 | G6: 113
A7: 4 | B7: 2. Спортивные объекты общеобразовательной организации
A8: 5 | B8: Всего: | C8: Спортивный зал 24х12 м и более | D8: Спортивный зал 18х9 м и менее | E8: Спортивный зал отсутствует | F8: Зал для адаптивной физической культуры | G8: Тренажёрный зал | H8: Плавательный бассейн | I8: Универсальная спортивная площадка | J8: Площадка для подвижных игр
B10: 1 | C10: 2 | D10: 3 | E10: 4 | F10: 5 | G10: 6 | H10: 7 | I10: 8 | J10: 9
A11: 6 | B11: =C11+D11+E11+F11+G11+H11+I11+J11 -> 2 | C11: 1 | I11: 1
A12: 7 | B12: 3. Спортивное оборудование и инвентарь для организации общеобразовательной деятельности
A13: 8 | B13: Содержание раздела | I13: ВСЕГО
B14: 1 | I14: 2
A15: 9 | B15: Общеобразовательная организация, имеющая спортивное оборудование и инвентарь для занятий футболом | I15: 1
A16: 10 | B16: Общеобразовательная организация, имеющая спортивное оборудование и инвентарь для занятий баскетболом | I16: 1
A17: 11 | B17: Общеобразовательная организация, имеющая спортивное оборудование и инвентарь для занятий волейболом | I17: 1
A18: 12 | B18: Общеобразовательная организация, имеющая спортивное оборудование и инвентарь для занятий гандболом | I18: 0
A19: 13 | B19: Общеобразовательная организация, имеющая спортивное оборудование и инвентарь для занятий фитнесом, общефизической подготовкой | I19: 1
A20: 14 | B20: Общеобразовательная организация, имеющая спортивное оборудование и инвентарь для занятий спортивной гимнастикой | I20: 1
A21: 15 | B21: Общеобразовательная организация, имеющая спортивное оборудование и инвентарь для занятий лёгкой атлетикой | I21: 1
A22: 16 | B22: Общеобразовательная организация, имеющая спортивное оборудование и инвентарь для занятий лыжной подготовкой | I22: 1
A23: 17 | B23: Общеобразовательная организация, имеющая спортивное оборудование и инвентарь для занятий плаванием | I23: 0
A24: 18 | B24: Общеобразовательная организация, имеющая спортивное оборудование и инвентарь для занятий подвижными играми и организации спортивных мероприятий | I24: 1
A25: 19 | B25: Общеобразовательная организация, имеющая спортивное оборудование и инвентарь для занятий спортивными единоборствами (самбо, дзюдо, иное) | I25: 1
A26: 20 | B26: Имеется дополнительное вариативное оборудование и инвентарь | I26: 1
A27: 21 | B27: Кабинет учителя физической культуры | I27: 1
A28: 22 | B28: 4. Организация урочной деятельности по учебному предмету «Физическая культура»
A29: 23 | B29: Общеобразовательная организация, в которой отведено на изучение учебного предмета «Физическая культура» в недельных учебных планах 3 часа | G29: Общеобразовательная организация, в которой отведено на изучение учебного предмета «Физическая культура» в недельных учебных планах 2 часа
B30: 1 | G30: 2
A31: 24 | B31: 1
A32: 25 | B32: 5. Организация внеурочной деятельности спортивно-оздоровительного /физкультурно-спортивного направления
A33: 26 | B33: Общеобразовательная организация, в которой объём часов, отводимых на внеурочную деятельность, отсутствует | E33: Общеобразовательная организация, в которой объём часов, отводимых на внеурочную деятельность, предусматривает не более 2-х часов в неделю | H33: Общеобразовательная организация, в которой объём часов, отводимых на внеурочную деятельность, предусматривает более 2-х часов в неделю
B34: 1 | E34: 2 | H34: 3
A35: 27 | E35: 1
A36: 28 | B36: 6. Общеобразовательная организация, использующая в рабочей программе часы на изучение раздела «Плавание»
A37: 29 | B37: Общеобразовательная организация, использующая в рабочей программе учебные часы на изучение раздела «Плавание»
A38: 30 | B38: 1
A39: 31 | B39: 7. Сведения об обучающихся в общеобразовательной организации
A40: 32 | B40: Всего обучающихся: | C40: Обучающиеся, отнесенные к основной группе здоровья | D40: Обучающиеся, отнесённые к подготовительной группе здоровья | E40: Обучающиеся, отнесённые к специальной группе здоровья «А» | F40: Обучающиеся, отнесённые к специальной группе здоровья «Б» | G40: Обучающиеся с ограниченными возможностями здоровья | I40: Обучающихся, имеющие группу инвалидности
B45: 1 | C45: 2 | D45: 3 | E45: 4 | F45: 5 | G45: 6 | I45: 7
A46: 33 | B46: =C46+D46+E46+F46+G46+I46 -> 113 | C46: 108 | D46: 4 | E46: 1 | K46: =B46=G6 -> TRUE
A47: 34 | B47: 8. Обучающиеся, принявшие участие во Всероссийской олимпиаде школьников по учебному предмету «Физическая культура»
A48: 35 | B48: Этап Всероссийской олимпиады | G48: Количество участников
B49: 1 | G49: 2
A50: 36 | B50: школьный | G50: 12
A51: 37 | B51: муниципальный | G51: 4
A52: 38 | B52: региональный
A53: 39 | B53: всероссийский
A54: 40 | B54: 9. Кадровый состав
A55: 41 | B55: Общее количество учителей физической культуры | C55: Имеют профессиональное образование в области физической культуры и спорта | E55: Имеют высшую квалификационную категорию | G55: Имеют первую квалификационную категорию | I55: Прошедшие обучение по дополнительным профессиональным образовательным программам повышения квалификации, программам профессиональной переподготовки в 2019\2020 учебном году
C56: Высшее образование | D56: Среднее профессиональное образование
B57: 1 | C57: 2 | D57: 3 | E57: 4 | G57: 5 | I57: 6
A58: 42 | B58: =C58+D58 -> 2 | C58: 1 | D58: 1 | E58: 1 | G58: 1

Sheet Сарсаз-Багряжская ООШ
A1: № строки | B1: Мониторинг общеобразовательных организаций, реализующих общеобразовательные программы начального общего, основного общего и (или) среднего общего образования учебного предмета «Физическая культура» в 2019/2020 учебном году
A3: 1 | B3: 1. Общие сведения
A4: 2 | B4: Муниципальное бюджетное общеобразовательное учреждение "Сарсаз - Багряжская основная общеобразовательная школа" Заинского муниципального района Республики Татарстан | G4: Общая численность обучающихся в общеобразовательной организации
B5: 1 | G5: 2
A6: 3 | B6: =COUNTA(B4) -> 1 | G6: 31
A7: 4 | B7: 2. Спортивные объекты общеобразовательной организации
A8: 5 | B8: Всего: | C8: Спортивный зал 24х12 м и более | D8: Спортивный зал 18х9 м и менее | E8: Спортивный зал отсутствует | F8: Зал для адаптивной физической культуры | G8: Тренажёрный зал | H8: Плавательный бассейн | I8: Универсальная спортивная площадка | J8: Площадка для подвижных игр
B10: 1 | C10: 2 | D10: 3 | E10: 4 | F10: 5 | G10: 6 | H10: 7 | I10: 8 | J10: 9
A11: 6 | B11: =C11+D11+E11+F11+G11+H11+I11+J11 -> 1 | D11: 1
A12: 7 | B12: 3. Спортивное оборудование и инвентарь для организации общеобразовательной деятельности
A13: 8 | B13: Содержание раздела | I13: ВСЕГО
B14: 1 | I14: 2
A15: 9 | B15: Общеобразовательная организация, имеющая спортивное оборудование и инвентарь для занятий футболом | I15: 0
A16: 10 | B16: Общеобразовательная организация, имеющая спортивное оборудование и инвентарь для занятий баскетболом | I16: 1
A17: 11 | B17: Общеобразовательная организация, имеющая спортивное оборудование и инвентарь для занятий волейболом | I17: 1
A18: 12 | B18: Общеобразовательная организация, имеющая спортивное оборудование и инвентарь для занятий гандболом | I18: 0
A19: 13 | B19: Общеобразовательная организация, имеющая спортивное оборудование и инвентарь для занятий фитнесом, общефизической подготовкой | I19: 0
A20: 14 | B20: Общеобразовательная организация, имеющая спортивное оборудование и инвентарь для занятий спортивной гимнастикой | I20: 1
A21: 15 | B21: Общеобразовательная организация, имеющая спортивное оборудование и инвентарь для занятий лёгкой атлетикой | I21: 1
A22: 16 | B22: Общеобразовательная организация, имеющая спортивное оборудование и инвентарь для занятий лыжной подготовкой | I22: 1
A23: 17 | B23: Общеобразовательная организация, имеющая спортивное оборудование и инвентарь для занятий плаванием | I23: 0
A24: 18 | B24: Общеобразовательная организация, имеющая спортивное оборудование и инвентарь для занятий подвижными играми и организации спортивных мероприятий | I24: 1
A25: 19 | B25: Общеобразовательная организация, имеющая спортивное оборудование и инвентарь для занятий спортивными единоборствами (самбо, дзюдо, иное) | I25: 0
A26: 20 | B26: Имеется дополнительное вариативное оборудование и инвентарь | I26: 0
A27: 21 | B27: Кабинет учителя физической культуры | I27: 1
A28: 22 | B28: 4. Организация урочной деятельности по учебному предмету «Физическая культура»
A29: 23 | B29: Общеобразовательная организация, в которой отведено на изучение учебного предмета «Физическая культура» в недельных учебных планах 3 часа | G29: Общеобразовательная организация, в которой отведено на изучение учебного предмета «Физическая культура» в недельных учебных планах 2 часа
B30: 1 | G30: 2
A31: 24 | B31: 1 | G31: 0
A32: 25 | B32: 5. Организация внеурочной деятельности спортивно-оздоровительного /физкультурно-спортивного направления
A33: 26 | B33: Общеобразовательная организация, в которой объём часов, отводимых на внеурочную деятельность, отсутствует | E33: Общеобразовательная организация, в которой объём часов, отводимых на внеурочную деятельность, предусматривает не более 2-х часов в неделю | H33: Общеобразовательная организация, в которой объём часов, отводимых на внеурочную деятельность, предусматривает более 2-х часов в неделю
B34: 1 | E34: 2 | H34: 3
A35: 27 | B35: 1 | E35: 0 | H35: 0
A36: 28 | B36: 6. Общеобразовательная организация, использующая в рабочей программе часы на изучение раздела «Плавание»
A37: 29 | B37: Общеобразовательная организация, использующая в рабочей программе учебные часы на изучение раздела «Плавание»
A38: 30 | B38: 3
A39: 31 | B39: 7. Сведения об обучающихся в общеобразовательной организации
A40: 32 | B40: Всего обучающихся: | C40: Обучающиеся, отнесенные к основной группе здоровья | D40: Обучающиеся, отнесённые к подготовительной группе здоровья | E40: Обучающиеся, отнесённые к специальной группе здоровья «А» | F40: Обучающиеся, отнесённые к специальной группе здоровья «Б» | G40: Обучающиеся с ограниченными возможностями здоровья | I40: Обучающихся, имеющие группу инвалидности
B45: 1 | C45: 2 | D45: 3 | E45: 4 | F45: 5 | G45: 6 | I45: 7
A46: 33 | B46: =C46+D46+E46+F46+G46+I46 -> 31 | C46: 26 | D46: 5 | K46: =B46=G6 -> TRUE
A47: 34 | B47: 8. Обучающиеся, принявшие участие во Всероссийской олимпиаде школьников по учебному предмету «Физическая культура»
A48: 35 | B48: Этап Всероссийской олимпиады | G48: Количество участников
B49: 1 | G49: 2
A50: 36 | B50: школьный | G50: 18
A51: 37 | B51: муниципальный | G51: 4
A52: 38 | B52: региональный
A53: 39 | B53: всероссийский
A54: 40 | B54: 9. Кадровый состав
A55: 41 | B55: Общее количество учителей физической культуры | C55: Имеют профессиональное образование в области физической культуры и спорта | E55: Имеют высшую квалификационную категорию | G55: Имеют первую квалификационную категорию | I55: Прошедшие обучение по дополнительным профессиональным образовательным программам повышения квалификации, программам профессиональной переподготовки в 2019\2020 учебном году
C56: Высшее образование | D56: Среднее профессиональное образование
B57: 1 | C57: 2 | D57: 3 | E57: 4 | G57: 5 | I57: 6
A58: 42 | B58: =C58+D58 -> 1 | C58: 1 | G58: 1

Sheet Верхненалимская ООШ
A1: № строки | B1: Мониторинг общеобразовательных организаций, реализующих общеобразовательные программы начального общего, основного общего и (или) среднего общего образования учебного предмета «Физическая культура» в 2019/2020 учебном году
A3: 1 | B3: 1. Общие сведения
A4: 2 | B4: Муниципальное бюджетное общеобразовательное учреждение "Верхненалимская оснавная общеобразовательная школа" Заинского муниципального района Республики Татарстан | G4: Общая численность обучающихся в общеобразовательной организации
B5: 1 | G5: 2
A6: 3 | B6: =COUNTA(B4) -> 1 | G6: 35
A7: 4 | B7: 2. Спортивные объекты общеобразовательной организации
A8: 5 | B8: Всего: | C8: Спортивный зал 24х12 м и более | D8: Спортивный зал 18х9 м и менее | E8: Спортивный зал отсутствует | F8: Зал для адаптивной физической культуры | G8: Тренажёрный зал | H8: Плавательный бассейн | I8: Универсальная спортивная площадка | J8: Площадка для подвижных игр
B10: 1 | C10: 2 | D10: 3 | E10: 4 | F10: 5 | G10: 6 | H10: 7 | I10: 8 | J10: 9
A11: 6 | B11: =C11+D11+E11+F11+G11+H11+I11+J11 -> 2 | D11: 1 | H11: 0 | J11: 1
A12: 7 | B12: 3. Спортивное оборудование и инвентарь для организации общеобразовательной деятельности
A13: 8 | B13: Содержание раздела | I13: ВСЕГО
B14: 1 | I14: 2
A15: 9 | B15: Общеобразовательная организация, имеющая спортивное оборудование и инвентарь для занятий футболом | I15: 1
A16: 10 | B16: Общеобразовательная организация, имеющая спортивное оборудование и инвентарь для занятий баскетболом | I16: 1
A17: 11 | B17: Общеобразовательная организация, имеющая спортивное оборудование и инвентарь для занятий волейболом | I17: 1
A18: 12 | B18: Общеобразовательная организация, имеющая спортивное оборудование и инвентарь для занятий гандболом | I18: 0
A19: 13 | B19: Общеобразовательная организация, имеющая спортивное оборудование и инвентарь для занятий фитнесом, общефизической подготовкой | I19: 1
A20: 14 | B20: Общеобразовательная организация, имеющая спортивное оборудование и инвентарь для занятий спортивной гимнастикой | I20: 0
A21: 15 | B21: Общеобразовательная организация, имеющая спортивное оборудование и инвентарь для занятий лёгкой атлетикой | I21: 1
A22: 16 | B22: Общеобразовательная организация, имеющая спортивное оборудование и инвентарь для занятий лыжной подготовкой | I22: 1
A23: 17 | B23: Общеобразовательная организация, имеющая спортивное оборудование и инвентарь для занятий плаванием | I23: 0
A24: 18 | B24: Общеобразовательная организация, имеющая спортивное оборудование и инвентарь для занятий подвижными играми и организации спортивных мероприятий | I24: 1
A25: 19 | B25: Общеобразовательная организация, имеющая спортивное оборудование и инвентарь для занятий спортивными единоборствами (самбо, дзюдо, иное) | I25: 0
A26: 20 | B26: Имеется дополнительное вариативное оборудование и инвентарь | I26: 1
A27: 21 | B27: Кабинет учителя физической культуры | I27: 1
A28: 22 | B28: 4. Организация урочной деятельности по учебному предмету «Физическая культура»
A29: 23 | B29: Общеобразовательная организация, в которой отведено на изучение учебного предмета «Физическая культура» в недельных учебных планах 3 часа | G29: Общеобразовательная организация, в которой отведено на изучение учебного предмета «Физическая культура» в недельных учебных планах 2 часа
B30: 1 | G30: 2
A31: 24 | B31: 1
A32: 25 | B32: 5. Организация внеурочной деятельности спортивно-оздоровительного /физкультурно-спортивного направления
A33: 26 | B33: Общеобразовательная организация, в которой объём часов, отводимых на внеурочную деятельность, отсутствует | E33: Общеобразовательная организация, в которой объём часов, отводимых на внеурочную деятельность, предусматривает не более 2-х часов в неделю | H33: Общеобразовательная организация, в которой объём часов, отводимых на внеурочную деятельность, предусматривает более 2-х часов в неделю
B34: 1 | E34: 2 | H34: 3
A35: 27 | B35: 0 | H35: 1
A36: 28 | B36: 6. Общеобразовательная организация, использующая в рабочей программе часы на изучение раздела «Плавание»
A37: 29 | B37: Общеобразовательная организация, использующая в рабочей программе учебные часы на изучение раздела «Плавание»
A38: 30 | B38: 3
A39: 31 | B39: 7. Сведения об обучающихся в общеобразовательной организации
A40: 32 | B40: Всего обучающихся: | C40: Обучающиеся, отнесенные к основной группе здоровья | D40: Обучающиеся, отнесённые к подготовительной группе здоровья | E40: Обучающиеся, отнесённые к специальной группе здоровья «А» | F40: Обучающиеся, отнесённые к специальной группе здоровья «Б» | G40: Обучающиеся с ограниченными возможностями здоровья | I40: Обучающихся, имеющие группу инвалидности
B45: 1 | C45: 2 | D45: 3 | E45: 4 | F45: 5 | G45: 6 | I45: 7
A46: 33 | B46: =C46+D46+E46+F46+G46+I46 -> 35 | C46: 33 | D46: 2 | K46: =B46=G6 -> TRUE
A47: 34 | B47: 8. Обучающиеся, принявшие участие во Всероссийской олимпиаде школьников по учебному предмету «Физическая культура»
A48: 35 | B48: Этап Всероссийской олимпиады | G48: Количество участников
B49: 1 | G49: 2
A50: 36 | B50: школьный | G50: 35
A51: 37 | B51: муниципальный | G51: 1
A52: 38 | B52: региональный | G52: 0
A53: 39 | B53: всероссийский | G53: 0
A54: 40 | B54: 9. Кадровый состав
A55: 41 | B55: Общее количество учителей физической культуры | C55: Имеют профессиональное образование в области физической культуры и спорта | E55: Имеют высшую квалификационную категорию | G55: Имеют первую квалификационную категорию | I55: Прошедшие обучение по дополнительным профессиональным образовательным программам повышения квалификации, программам профессиональной переподготовки в 2019\2020 учебном году
C56: Высшее образование | D56: Среднее профессиональное образование
B57: 1 | C57: 2 | D57: 3 | E57: 4 | G57: 5 | I57: 6
A58: 42 | B58: =C58+D58 -> 1 | C58: 1 | D58: 0 | E58: 0 | G58: 1 | I58: 0

Sheet Бухарайская ООШ
A1: № строки | B1: Мониторинг общеобразовательных организаций, реализующих общеобразовательные программы начального общего, основного общего и (или) среднего общего образования учебного предмета «Физическая культура» в 2019/2020 учебном году
A3: 1 | B3: 1. Общие сведения
A4: 2 | B4: Муниципальное бюджетное общеобразовательное учреждение "Бухарайская основная общеобразовательная школа" Заинского муниципального района Республики Татарстан | G4: Общая численность обучающихся в общеобразовательной организации
B5: 1 | G5: 2
A6: 3 | B6: =COUNTA(B4) -> 1 | G6: 56
A7: 4 | B7: 2. Спортивные объекты общеобразовательной организации
A8: 5 | B8: Всего: | C8: Спортивный зал 24х12 м и более | D8: Спортивный зал 18х9 м и менее | E8: Спортивный зал отсутствует | F8: Зал для адаптивной физической культуры | G8: Тренажёрный зал | H8: Плавательный бассейн | I8: Универсальная спортивная площадка | J8: Площадка для подвижных игр
B10: 1 | C10: 2 | D10: 3 | E10: 4 | F10: 5 | G10: 6 | H10: 7 | I10: 8 | J10: 9
A11: 6 | B11: =C11+D11+E11+F11+G11+H11+I11+J11 -> 2 | C11: 0 | D11: 1 | E11: 0 | F11: 0 | G11: 0 | H11: 0 | I11: 0 | J11: 1
A12: 7 | B12: 3. Спортивное оборудование и инвентарь для организации общеобразовательной деятельности
A13: 8 | B13: Содержание раздела | I13: ВСЕГО
B14: 1 | I14: 2
A15: 9 | B15: Общеобразовательная организация, имеющая спортивное оборудование и инвентарь для занятий футболом | I15: 0
A16: 10 | B16: Общеобразовательная организация, имеющая спортивное оборудование и инвентарь для занятий баскетболом | I16: 1
A17: 11 | B17: Общеобразовательная организация, имеющая спортивное оборудование и инвентарь для занятий волейболом | I17: 1
A18: 12 | B18: Общеобразовательная организация, имеющая спортивное оборудование и инвентарь для занятий гандболом | I18: 0
A19: 13 | B19: Общеобразовательная организация, имеющая спортивное оборудование и инвентарь для занятий фитнесом, общефизической подготовкой | I19: 1
A20: 14 | B20: Общеобразовательная организация, имеющая спортивное оборудование и инвентарь для занятий спортивной гимнастикой | I20: 0
A21: 15 | B21: Общеобразовательная организация, имеющая спортивное оборудование и инвентарь для занятий лёгкой атлетикой | I21: 1
A22: 16 | B22: Общеобразовательная организация, имеющая спортивное оборудование и инвентарь для занятий лыжной подготовкой | I22: 1
A23: 17 | B23: Общеобразовательная организация, имеющая спортивное оборудование и инвентарь для занятий плаванием | I23: 0
A24: 18 | B24: Общеобразовательная организация, имеющая спортивное оборудование и инвентарь для занятий подвижными играми и организации спортивных мероприятий | I24: 1
A25: 19 | B25: Общеобразовательная организация, имеющая спортивное оборудование и инвентарь для занятий спортивными единоборствами (самбо, дзюдо, иное) | I25: 0
A26: 20 | B26: Имеется дополнительное вариативное оборудование и инвентарь | I26: 0
A27: 21 | B27: Кабинет учителя физической культуры | I27: 0
A28: 22 | B28: 4. Организация урочной деятельности по учебному предмету «Физическая культура»
A29: 23 | B29: Общеобразовательная организация, в которой отведено на изучение учебного предмета «Физическая культура» в недельных учебных планах 3 часа | G29: Общеобразовательная организация, в которой отведено на изучение учебного предмета «Физическая культура» в недельных учебных планах 2 часа
B30: 1 | G30: 2
A31: 24 | B31: 1 | G31: 0
A32: 25 | B32: 5. Организация внеурочной деятельности спортивно-оздоровительного /физкультурно-спортивного направления
A33: 26 | B33: Общеобразовательная организация, в которой объём часов, отводимых на внеурочную деятельность, отсутствует | E33: Общеобразовательная организация, в которой объём часов, отводимых на внеурочную деятельность, предусматривает не более 2-х часов в неделю | H33: Общеобразовательная организация, в которой объём часов, отводимых на внеурочную деятельность, предусматривает более 2-х часов в неделю
B34: 1 | E34: 2 | H34: 3
A35: 27 | B35: 0 | E35: 0 | H35: 1
A36: 28 | B36: 6. Общеобразовательная организация, использующая в рабочей программе часы на изучение раздела «Плавание»
A37: 29 | B37: Общеобразовательная организация, использующая в рабочей программе учебные часы на изучение раздела «Плавание»
A38: 30 | B38: 3
A39: 31 | B39: 7. Сведения об обучающихся в общеобразовательной организации
A40: 32 | B40: Всего обучающихся: | C40: Обучающиеся, отнесенные к основной группе здоровья | D40: Обучающиеся, отнесённые к подготовительной группе здоровья | E40: Обучающиеся, отнесённые к специальной группе здоровья «А» | F40: Обучающиеся, отнесённые к специальной группе здоровья «Б» | G40: Обучающиеся с ограниченными возможностями здоровья | I40: Обучающихся, имеющие группу инвалидности
B45: 1 | C45: 2 | D45: 3 | E45: 4 | F45: 5 | G45: 6 | I45: 7
A46: 33 | B46: =C46+D46+E46+F46+G46+I46 -> 56 | C46: 50 | D46: 6 | K46: =B46=G6 -> TRUE
A47: 34 | B47: 8. Обучающиеся, принявшие участие во Всероссийской олимпиаде школьников по учебному предмету «Физическая культура»
A48: 35 | B48: Этап Всероссийской олимпиады | G48: Количество участников
B49: 1 | G49: 2
A50: 36 | B50: школьный | G50: 13
A51: 37 | B51: муниципальный | G51: 2
A52: 38 | B52: региональный | G52: 0
A53: 39 | B53: всероссийский | G53: 0
A54: 40 | B54: 9. Кадровый состав
A55: 41 | B55: Общее количество учителей физической культуры | C55: Имеют профессиональное образование в области физической культуры и спорта | E55: Имеют высшую квалификационную категорию | G55: Имеют первую квалификационную категорию | I55: Прошедшие обучение по дополнительным профессиональным образовательным программам повышения квалификации, программам профессиональной переподготовки в 2019\2020 учебном году
C56: Высшее образование | D56: Среднее профессиональное образование
B57: 1 | C57: 2 | D57: 3 | E57: 4 | G57: 5 | I57: 6
A58: 42 | B58: =C58+D58 -> 1 | C58: 1 | D58: 0 | E58: 0 | G58: 1 | I58: 1

Sheet Александрослободская ООШ
A1: № строки | B1: Мониторинг общеобразовательных организаций, реализующих общеобразовательные программы начального общего, основного общего и (или) среднего общего образования учебного предмета «Физическая культура» в 2019/2020 учебном году
A3: 1 | B3: 1. Общие сведения
A4: 2 | B4: Муниципальное бюджетное общеобразовательное учреждение "Александро-Слободская основная общеобразовательная школа" Заинского муниципального района Республики Татарстан | G4: Общая численность обучающихся в общеобразовательной организации
B5: 1 | G5: 2
A6: 3 | B6: =COUNTA(B4) -> 1 | G6: 67
A7: 4 | B7: 2. Спортивные объекты общеобразовательной организации
A8: 5 | B8: Всего: | C8: Спортивный зал 24х12 м и более | D8: Спортивный зал 18х9 м и менее | E8: Спортивный зал отсутствует | F8: Зал для адаптивной физической культуры | G8: Тренажёрный зал | H8: Плавательный бассейн | I8: Универсальная спортивная площадка | J8: Площадка для подвижных игр
B10: 1 | C10: 2 | D10: 3 | E10: 4 | F10: 5 | G10: 6 | H10: 7 | I10: 8 | J10: 9
A11: 6 | B11: =C11+D11+E11+F11+G11+H11+I11+J11 -> 2 | C11: 0 | D11: 1 | F11: 0 | G11: 0 | H11: 0 | I11: 0 | J11: 1
A12: 7 | B12: 3. Спортивное оборудование и инвентарь для организации общеобразовательной деятельности
A13: 8 | B13: Содержание раздела | I13: ВСЕГО
B14: 1 | I14: 2
A15: 9 | B15: Общеобразовательная организация, имеющая спортивное оборудование и инвентарь для занятий футболом | I15: 1
A16: 10 | B16: Общеобразовательная организация, имеющая спортивное оборудование и инвентарь для занятий баскетболом | I16: 1
A17: 11 | B17: Общеобразовательная организация, имеющая спортивное оборудование и инвентарь для занятий волейболом | I17: 1
A18: 12 | B18: Общеобразовательная организация, имеющая спортивное оборудование и инвентарь для занятий гандболом | I18: 0
A19: 13 | B19: Общеобразовательная организация, имеющая спортивное оборудование и инвентарь для занятий фитнесом, общефизической подготовкой | I19: 0
A20: 14 | B20: Общеобразовательная организация, имеющая спортивное оборудование и инвентарь для занятий спортивной гимнастикой | I20: 1
A21: 15 | B21: Общеобразовательная организация, имеющая спортивное оборудование и инвентарь для занятий лёгкой атлетикой | I21: 1
A22: 16 | B22: Общеобразовательная организация, имеющая спортивное оборудование и инвентарь для занятий лыжной подготовкой | I22: 1
A23: 17 | B23: Общеобразовательная организация, имеющая спортивное оборудование и инвентарь для занятий плаванием | I23: 0
A24: 18 | B24: Общеобразовательная организация, имеющая спортивное оборудование и инвентарь для занятий подвижными играми и организации спортивных мероприятий | I24: 1
A25: 19 | B25: Общеобразовательная организация, имеющая спортивное оборудование и инвентарь для занятий спортивными единоборствами (самбо, дзюдо, иное) | I25: 0
A26: 20 | B26: Имеется дополнительное вариативное оборудование и инвентарь | I26: 0
A27: 21 | B27: Кабинет учителя физической культуры | I27: 0
A28: 22 | B28: 4. Организация урочной деятельности по учебному предмету «Физическая культура»
A29: 23 | B29: Общеобразовательная организация, в которой отведено на изучение учебного предмета «Физическая культура» в недельных учебных планах 3 часа | G29: Общеобразовательная организация, в которой отведено на изучение учебного предмета «Физическая культура» в недельных учебных планах 2 часа
B30: 1 | G30: 2
A31: 24 | B31: 1 | G31: 0
A32: 25 | B32: 5. Организация внеурочной деятельности спортивно-оздоровительного /физкультурно-спортивного направления
A33: 26 | B33: Общеобразовательная организация, в которой объём часов, отводимых на внеурочную деятельность, отсутствует | E33: Общеобразовательная организация, в которой объём часов, отводимых на внеурочную деятельность, предусматривает не более 2-х часов в неделю | H33: Общеобразовательная организация, в которой объём часов, отводимых на внеурочную деятельность, предусматривает более 2-х часов в неделю
B34: 1 | E34: 2 | H34: 3
A35: 27 | B35: 0 | E35: 1 | H35: 0
A36: 28 | B36: 6. Общеобразовательная организация, использующая в рабочей программе часы на изучение раздела «Плавание»
A37: 29 | B37: Общеобразовательная организация, использующая в рабочей программе учебные часы на изучение раздела «Плавание»
A38: 30 | B38: 3
A39: 31 | B39: 7. Сведения об обучающихся в общеобразовательной организации
A40: 32 | B40: Всего обучающихся: | C40: Обучающиеся, отнесенные к основной группе здоровья | D40: Обучающиеся, отнесённые к подготовительной группе здоровья | E40: Обучающиеся, отнесённые к специальной группе здоровья «А» | F40: Обучающиеся, отнесённые к специальной группе здоровья «Б» | G40: Обучающиеся с ограниченными возможностями здоровья | I40: Обучающихся, имеющие группу инвалидности
B45: 1 | C45: 2 | D45: 3 | E45: 4 | F45: 5 | G45: 6 | I45: 7
A46: 33 | B46: =C46+D46+E46+F46+G46+I46 -> 67 | C46: 58 | D46: 8 | I46: 1 | K46: =B46=G6 -> TRUE
A47: 34 | B47: 8. Обучающиеся, принявшие участие во Всероссийской олимпиаде школьников по учебному предмету «Физическая культура»
A48: 35 | B48: Этап Всероссийской олимпиады | G48: Количество участников
B49: 1 | G49: 2
A50: 36 | B50: школьный | G50: 5
A51: 37 | B51: муниципальный | G51: 3
A52: 38 | B52: региональный | G52: 0
A53: 39 | B53: всероссийский | G53: 0
A54: 40 | B54: 9. Кадровый состав
A55: 41 | B55: Общее количество учителей физической культуры | C55: Имеют профессиональное образование в области физической культуры и спорта | E55: Имеют высшую квалификационную категорию | G55: Имеют первую квалификационную категорию | I55: Прошедшие обучение по дополнительным профессиональным образовательным программам повышения квалификации, программам профессиональной переподготовки в 2019\2020 учебном году
C56: Высшее образование | D56: Среднее профессиональное образование
B57: 1 | C57: 2 | D57: 3 | E57: 4 | G57: 5 | I57: 6
A58: 42 | B58: =C58+D58 -> 1 | C58: 1 | D58: 0 | E58: 0 | G58: 1 | I58: 0

Sheet Бегишевская СОШ
A1: № строки | B1: Мониторинг общеобразовательных организаций, реализующих общеобразовательные программы начального общего, основного общего и (или) среднего общего образования учебного предмета «Физическая культура» в 2019/2020 учебном году
A3: 1 | B3: 1. Общие сведения
A4: 2 | B4: Муниципальное бюджетное общеобразовательное учреждение «Бегишевская средняя общеобразовательная школа имени Мансура Хасановича Хасанова» Заинского муниципального района Республики Татарстан | G4: Общая численность обучающихся в общеобразовательной организации
B5: 1 | G5: 2
A6: 3 | B6: =COUNTA(B4) -> 1 | G6: 55
A7: 4 | B7: 2. Спортивные объекты общеобразовательной организации
A8: 5 | B8: Всего: | C8: Спортивный зал 24х12 м и более | D8: Спортивный зал 18х9 м и менее | E8: Спортивный зал отсутствует | F8: Зал для адаптивной физической культуры | G8: Тренажёрный зал | H8: Плавательный бассейн | I8: Универсальная спортивная площадка | J8: Площадка для подвижных игр
B10: 1 | C10: 2 | D10: 3 | E10: 4 | F10: 5 | G10: 6 | H10: 7 | I10: 8 | J10: 9
A11: 6 | B11: =C11+D11+E11+F11+G11+H11+I11+J11 -> 2 | D11: 1 | I11: 1
A12: 7 | B12: 3. Спортивное оборудование и инвентарь для организации общеобразовательной деятельности
A13: 8 | B13: Содержание раздела | I13: ВСЕГО
B14: 1 | I14: 2
A15: 9 | B15: Общеобразовательная организация, имеющая спортивное оборудование и инвентарь для занятий футболом | I15: 1
A16: 10 | B16: Общеобразовательная организация, имеющая спортивное оборудование и инвентарь для занятий баскетболом | I16: 1
A17: 11 | B17: Общеобразовательная организация, имеющая спортивное оборудование и инвентарь для занятий волейболом | I17: 1
A18: 12 | B18: Общеобразовательная организация, имеющая спортивное оборудование и инвентарь для занятий гандболом | I18: 0
A19: 13 | B19: Общеобразовательная организация, имеющая спортивное оборудование и инвентарь для занятий фитнесом, общефизической подготовкой | I19: 0
A20: 14 | B20: Общеобразовательная организация, имеющая спортивное оборудование и инвентарь для занятий спортивной гимнастикой | I20: 0
A21: 15 | B21: Общеобразовательная организация, имеющая спортивное оборудование и инвентарь для занятий лёгкой атлетикой | I21: 0
A22: 16 | B22: Общеобразовательная организация, имеющая спортивное оборудование и инвентарь для занятий лыжной подготовкой | I22: 1
A23: 17 | B23: Общеобразовательная организация, имеющая спортивное оборудование и инвентарь для занятий плаванием | I23: 0
A24: 18 | B24: Общеобразовательная организация, имеющая спортивное оборудование и инвентарь для занятий подвижными играми и организации спортивных мероприятий | I24: 0
A25: 19 | B25: Общеобразовательная организация, имеющая спортивное оборудование и инвентарь для занятий спортивными единоборствами (самбо, дзюдо, иное) | I25: 0
A26: 20 | B26: Имеется дополнительное вариативное оборудование и инвентарь | I26: 0
A27: 21 | B27: Кабинет учителя физической культуры | I27: 0
A28: 22 | B28: 4. Организация урочной деятельности по учебному предмету «Физическая культура»
A29: 23 | B29: Общеобразовательная организация, в которой отведено на изучение учебного предмета «Физическая культура» в недельных учебных планах 3 часа | G29: Общеобразовательная организация, в которой отведено на изучение учебного предмета «Физическая культура» в недельных учебных планах 2 часа
B30: 1 | G30: 2
A31: 24 | B31: 1 | G31: 0
A32: 25 | B32: 5. Организация внеурочной деятельности спортивно-оздоровительного /физкультурно-спортивного направления
A33: 26 | B33: Общеобразовательная организация, в которой объём часов, отводимых на внеурочную деятельность, отсутствует | E33: Общеобразовательная организация, в которой объём часов, отводимых на внеурочную деятельность, предусматривает не более 2-х часов в неделю | H33: Общеобразовательная организация, в которой объём часов, отводимых на внеурочную деятельность, предусматривает более 2-х часов в неделю
B34: 1 | E34: 2 | H34: 3
A35: 27 | B35: 0 | E35: 1 | H35: 0
A36: 28 | B36: 6. Общеобразовательная организация, использующая в рабочей программе часы на изучение раздела «Плавание»
A37: 29 | B37: Общеобразовательная организация, использующая в рабочей программе учебные часы на изучение раздела «Плавание»
A38: 30 | B38: 3
A39: 31 | B39: 7. Сведения об обучающихся в общеобразовательной организации
A40: 32 | B40: Всего обучающихся: | C40: Обучающиеся, отнесенные к основной группе здоровья | D40: Обучающиеся, отнесённые к подготовительной группе здоровья | E40: Обучающиеся, отнесённые к специальной группе здоровья «А» | F40: Обучающиеся, отнесённые к специальной группе здоровья «Б» | G40: Обучающиеся с ограниченными возможностями здоровья | I40: Обучающихся, имеющие группу инвалидности
B45: 1 | C45: 2 | D45: 3 | E45: 4 | F45: 5 | G45: 6 | I45: 7
A46: 33 | B46: =C46+D46+E46+F46+G46+I46 -> 55 | C46: 48 | D46: 7 | K46: =B46=G6 -> TRUE
A47: 34 | B47: 8. Обучающиеся, принявшие участие во Всероссийской олимпиаде школьников по учебному предмету «Физическая культура»
A48: 35 | B48: Этап Всероссийской олимпиады | G48: Количество участников
B49: 1 | G49: 2
A50: 36 | B50: школьный | G50: 10
A51: 37 | B51: муниципальный | G51: 4
A52: 38 | B52: региональный | G52: 0
A53: 39 | B53: всероссийский | G53: 0
A54: 40 | B54: 9. Кадровый состав
A55: 41 | B55: Общее количество учителей физической культуры | C55: Имеют профессиональное образование в области физической культуры и спорта | E55: Имеют высшую квалификационную категорию | G55: Имеют первую квалификационную категорию | I55: Прошедшие обучение по дополнительным профессиональным образовательным программам повышения квалификации, программам профессиональной переподготовки в 2019\2020 учебном году
C56: Высшее образование | D56: Среднее профессиональное образование
B57: 1 | C57: 2 | D57: 3 | E57: 4 | G57: 5 | I57: 6
A58: 42 | B58: =C58+D58 -> 1 | D58: 1 | G58: 1

Sheet Кадыровская СОШ
A1: № строки | B1: Мониторинг общеобразовательных организаций, реализующих общеобразовательные программы начального общего, основного общего и (или) среднего общего образования учебного предмета «Физическая культура» в 2019/2020 учебном году
A3: 1 | B3: 1. Общие сведения
A4: 2 | B4: Муниципальное бюджетное общеобразовательное учреждение «Кадыровская средняя общеобразовательная школа» Заинского муниципального района Республика Татарстан | G4: Общая численность обучающихся в общеобразовательной организации
B5: 1 | G5: 2
A6: 3 | B6: =COUNTA(B4) -> 1 | G6: 92
A7: 4 | B7: 2. Спортивные объекты общеобразовательной организации
A8: 5 | B8: Всего: | C8: Спортивный зал 24х12 м и более | D8: Спортивный зал 18х9 м и менее | E8: Спортивный зал отсутствует | F8: Зал для адаптивной физической культуры | G8: Тренажёрный зал | H8: Плавательный бассейн | I8: Универсальная спортивная площадка | J8: Площадка для подвижных игр
B10: 1 | C10: 2 | D10: 3 | E10: 4 | F10: 5 | G10: 6 | H10: 7 | I10: 8 | J10: 9
A11: 6 | B11: =C11+D11+E11+F11+G11+H11+I11+J11 -> 2 | D11: 1 | J11: 1
A12: 7 | B12: 3. Спортивное оборудование и инвентарь для организации общеобразовательной деятельности
A13: 8 | B13: Содержание раздела | I13: ВСЕГО
B14: 1 | I14: 2
A15: 9 | B15: Общеобразовательная организация, имеющая спортивное оборудование и инвентарь для занятий футболом
A16: 10 | B16: Общеобразовательная организация, имеющая спортивное оборудование и инвентарь для занятий баскетболом
A17: 11 | B17: Общеобразовательная организация, имеющая спортивное оборудование и инвентарь для занятий волейболом
A18: 12 | B18: Общеобразовательная организация, имеющая спортивное оборудование и инвентарь для занятий гандболом
A19: 13 | B19: Общеобразовательная организация, имеющая спортивное оборудование и инвентарь для занятий фитнесом, общефизической подготовкой
A20: 14 | B20: Общеобразовательная организация, имеющая спортивное оборудование и инвентарь для занятий спортивной гимнастикой
A21: 15 | B21: Общеобразовательная организация, имеющая спортивное оборудование и инвентарь для занятий лёгкой атлетикой
A22: 16 | B22: Общеобразовательная организация, имеющая спортивное оборудование и инвентарь для занятий лыжной подготовкой
A23: 17 | B23: Общеобразовательная организация, имеющая спортивное оборудование и инвентарь для занятий плаванием
A24: 18 | B24: Общеобразовательная организация, имеющая спортивное оборудование и инвентарь для занятий подвижными играми и организации спортивных мероприятий
A25: 19 | B25: Общеобразовательная организация, имеющая спортивное оборудование и инвентарь для занятий спортивными единоборствами (самбо, дзюдо, иное)
A26: 20 | B26: Имеется дополнительное вариативное оборудование и инвентарь
A27: 21 | B27: Кабинет учителя физической культуры
A28: 22 | B28: 4. Организация урочной деятельности по учебному предмету «Физическая культура»
A29: 23 | B29: Общеобразовательная организация, в которой отведено на изучение учебного предмета «Физическая культура» в недельных учебных планах 3 часа | G29: Общеобразовательная организация, в которой отведено на изучение учебного предмета «Физическая культура» в недельных учебных планах 2 часа
B30: 1 | G30: 2
A31: 24 | B31: 1
A32: 25 | B32: 5. Организация внеурочной деятельности спортивно-оздоровительного /физкультурно-спортивного направления
A33: 26 | B33: Общеобразовательная организация, в которой объём часов, отводимых на внеурочную деятельность, отсутствует | E33: Общеобразовательная организация, в которой объём часов, отводимых на внеурочную деятельность, предусматривает не более 2-х часов в неделю | H33: Общеобразовательная организация, в которой объём часов, отводимых на внеурочную деятельность, предусматривает более 2-х часов в неделю
B34: 1 | E34: 2 | H34: 3
A35: 27
A36: 28 | B36: 6. Общеобразовательная организация, использующая в рабочей программе часы на изучение раздела «Плавание»
A37: 29 | B37: Общеобразовательная организация, использующая в рабочей программе учебные часы на изучение раздела «Плавание»
A38: 30 | B38: 3
A39: 31 | B39: 7. Сведения об обучающихся в общеобразовательной организации
A40: 32 | B40: Всего обучающихся: | C40: Обучающиеся, отнесенные к основной группе здоровья | D40: Обучающиеся, отнесённые к подготовительной группе здоровья | E40: Обучающиеся, отнесённые к специальной группе здоровья «А» | F40: Обучающиеся, отнесённые к специальной группе здоровья «Б» | G40: Обучающиеся с ограниченными возможностями здоровья | I40: Обучающихся, имеющие группу инвалидности
B45: 1 | C45: 2 | D45: 3 | E45: 4 | F45: 5 | G45: 6 | I45: 7
A46: 33 | B46: =C46+D46+E46+F46+G46+I46 -> 92 | C46: 89 | G46: 1 | I46: 2 | K46: =B46=G6 -> TRUE
A47: 34 | B47: 8. Обучающиеся, принявшие участие во Всероссийской олимпиаде школьников по учебному предмету «Физическая культура»
A48: 35 | B48: Этап Всероссийской олимпиады | G48: Количество участников
B49: 1 | G49: 2
A50: 36 | B50: школьный | G50: 20
A51: 37 | B51: муниципальный | G51: 5
A52: 38 | B52: региональный | G52: 1
A53: 39 | B53: всероссийский
A54: 40 | B54: 9. Кадровый состав
A55: 41 | B55: Общее количество учителей физической культуры | C55: Имеют профессиональное образование в области физической культуры и спорта | E55: Имеют высшую квалификационную категорию | G55: Имеют первую квалификационную категорию | I55: Прошедшие обучение по дополнительным профессиональным образовательным программам повышения квалификации, программам профессиональной переподготовки в 2019\2020 учебном году
C56: Высшее образование | D56: Среднее профессиональное образование
B57: 1 | C57: 2 | D57: 3 | E57: 4 | G57: 5 | I57: 6
A58: 42 | B58: =C58+D58 -> 2 | C58: 2 | E58: 2 | I58: 0

Sheet Нижнебишевская СОШ
A1: № строки | B1: Мониторинг общеобразовательных организаций, реализующих общеобразовательные программы начального общего, основного общего и (или) среднего общего образования учебного предмета «Физическая культура» в 2019/2020 учебном году
A3: 1 | B3: 1. Общие сведения
A4: 2 | B4: Муниципальное бюджетное общеобразовательное учреждение «Нижнебишевская средняя общеобразовательная школа» Заинского муниципального района Республика Татарстан | G4: Общая численность обучающихся в общеобразовательной организации
B5: 1 | G5: 2
A6: 3 | B6: =COUNTA(B4) -> 1 | G6: 68
A7: 4 | B7: 2. Спортивные объекты общеобразовательной организации
A8: 5 | B8: Всего: | C8: Спортивный зал 24х12 м и более | D8: Спортивный зал 18х9 м и менее | E8: Спортивный зал отсутствует | F8: Зал для адаптивной физической культуры | G8: Тренажёрный зал | H8: Плавательный бассейн | I8: Универсальная спортивная площадка | J8: Площадка для подвижных игр
B10: 1 | C10: 2 | D10: 3 | E10: 4 | F10: 5 | G10: 6 | H10: 7 | I10: 8 | J10: 9
A11: 6 | B11: =C11+D11+E11+F11+G11+H11+I11+J11 -> 2 | C11: 0 | D11: 1 | E11: 0 | F11: 0 | G11: 0 | H11: 0 | I11: 0 | J11: 1
A12: 7 | B12: 3. Спортивное оборудование и инвентарь для организации общеобразовательной деятельности
A13: 8 | B13: Содержание раздела | I13: ВСЕГО
B14: 1 | I14: 2
A15: 9 | B15: Общеобразовательная организация, имеющая спортивное оборудование и инвентарь для занятий футболом | I15: 0
A16: 10 | B16: Общеобразовательная организация, имеющая спортивное оборудование и инвентарь для занятий баскетболом | I16: 1
A17: 11 | B17: Общеобразовательная организация, имеющая спортивное оборудование и инвентарь для занятий волейболом | I17: 1
A18: 12 | B18: Общеобразовательная организация, имеющая спортивное оборудование и инвентарь для занятий гандболом | I18: 0
A19: 13 | B19: Общеобразовательная организация, имеющая спортивное оборудование и инвентарь для занятий фитнесом, общефизической подготовкой | I19: 0
A20: 14 | B20: Общеобразовательная организация, имеющая спортивное оборудование и инвентарь для занятий спортивной гимнастикой | I20: 0
A21: 15 | B21: Общеобразовательная организация, имеющая спортивное оборудование и инвентарь для занятий лёгкой атлетикой | I21: 0
A22: 16 | B22: Общеобразовательная организация, имеющая спортивное оборудование и инвентарь для занятий лыжной подготовкой | I22: 0
A23: 17 | B23: Общеобразовательная организация, имеющая спортивное оборудование и инвентарь для занятий плаванием | I23: 0
A24: 18 | B24: Общеобразовательная организация, имеющая спортивное оборудование и инвентарь для занятий подвижными играми и организации спортивных мероприятий | I24: 0
A25: 19 | B25: Общеобразовательная организация, имеющая спортивное оборудование и инвентарь для занятий спортивными единоборствами (самбо, дзюдо, иное) | I25: 0
A26: 20 | B26: Имеется дополнительное вариативное оборудование и инвентарь | I26: 0
A27: 21 | B27: Кабинет учителя физической культуры | I27: 1
A28: 22 | B28: 4. Организация урочной деятельности по учебному предмету «Физическая культура»
A29: 23 | B29: Общеобразовательная организация, в которой отведено на изучение учебного предмета «Физическая культура» в недельных учебных планах 3 часа | G29: Общеобразовательная организация, в которой отведено на изучение учебного предмета «Физическая культура» в недельных учебных планах 2 часа
B30: 1 | G30: 2
A31: 24 | B31: 1
A32: 25 | B32: 5. Организация внеурочной деятельности спортивно-оздоровительного /физкультурно-спортивного направления
A33: 26 | B33: Общеобразовательная организация, в которой объём часов, отводимых на внеурочную деятельность, отсутствует | E33: Общеобразовательная организация, в которой объём часов, отводимых на внеурочную деятельность, предусматривает не более 2-х часов в неделю | H33: Общеобразовательная организация, в которой объём часов, отводимых на внеурочную деятельность, предусматривает более 2-х часов в неделю
B34: 1 | E34: 2 | H34: 3
A35: 27 | B35: 0 | E35: 1 | H35: 0
A36: 28 | B36: 6. Общеобразовательная организация, использующая в рабочей программе часы на изучение раздела «Плавание»
A37: 29 | B37: Общеобразовательная организация, использующая в рабочей программе учебные часы на изучение раздела «Плавание»
A38: 30 | B38: 3
A39: 31 | B39: 7. Сведения об обучающихся в общеобразовательной организации
A40: 32 | B40: Всего обучающихся: | C40: Обучающиеся, отнесенные к основной группе здоровья | D40: Обучающиеся, отнесённые к подготовительной группе здоровья | E40: Обучающиеся, отнесённые к специальной группе здоровья «А» | F40: Обучающиеся, отнесённые к специальной группе здоровья «Б» | G40: Обучающиеся с ограниченными возможностями здоровья | I40: Обучающихся, имеющие группу инвалидности
B45: 1 | C45: 2 | D45: 3 | E45: 4 | F45: 5 | G45: 6 | I45: 7
A46: 33 | B46: =C46+D46+E46+F46+G46+I46 -> 68 | C46: 68 | K46: =B46=G6 -> TRUE
A47: 34 | B47: 8. Обучающиеся, принявшие участие во Всероссийской олимпиаде школьников по учебному предмету «Физическая культура»
A48: 35 | B48: Этап Всероссийской олимпиады | G48: Количество участников
B49: 1 | G49: 2
A50: 36 | B50: школьный | G50: 15
A51: 37 | B51: муниципальный | G51: 3
A52: 38 | B52: региональный
A53: 39 | B53: всероссийский
A54: 40 | B54: 9. Кадровый состав
A55: 41 | B55: Общее количество учителей физической культуры | C55: Имеют профессиональное образование в области физической культуры и спорта | E55: Имеют высшую квалификационную категорию | G55: Имеют первую квалификационную категорию | I55: Прошедшие обучение по дополнительным профессиональным образовательным программам повышения квалификации, программам профессиональной переподготовки в 2019\2020 учебном году
C56: Высшее образование | D56: Среднее профессиональное образование
B57: 1 | C57: 2 | D57: 3 | E57: 4 | G57: 5 | I57: 6
A58: 42 | B58: =C58+D58 -> 1 | C58: 1 | D58: 0 | E58: 0 | G58: 1 | I58: 0

Sheet КОНЕЦ
A1: Раздел 1. Сведения об общеобразовательных организациях
B3: № строки | C3: Общее количество общеобразовательных организаций (юр. лиц) | D3: Количество общеобразовательных организаций, имеющих лицензию на право ведения образовательной деятельности по подвиду дополнительного образования "дополнительное образование детей и взрослых" | E3: Количество общеобразовательных организаций (юр. лиц), реализующих программы дополнительного образования физкультурно-спортивной направленности
A5: 1 | B5: 2 | C5: 3 | D5: 4 | E5: 5
A6: Всего | B6: 01 | C6: =SUM(C7:C8) -> 0 | D6: =SUM(D7:D8) -> 0 | E6: =SUM(E7:E8) -> 0
A7: Из них в городских поселениях | B7: 02
A8: Из них в сельской местности | B8: 03

Sheet Лист1 (hidden)
A1: Наименование субъекта Российской Федерации
A2: Республика Адыгея
A3: Республика Башкортостан
A4: Республика Бурятия
A5: Республика Алтай
A6: Республика Дагестан
A7: Республика Ингушетия
A8: Кабардино-Балкарская Республика
A9: Республика Калмыкия
A10: Карачаево-Черкесская Республика
A11: Республика Карелия
A12: Республика Коми
A13: Республика Марий Эл
A14: Республика Мордовия
A15: Республика Саха (Якутия)
A16: Республика Северная Осетия - Алания
A17: Республика Татарстан
A18: Республика Тыва
A19: Удмуртская Республика
A20: Республика Хакасия
A21: Чеченская Республика
A22: Чувашская Республика
A23: Алтайский край
A24: Краснодарский край
A25: Красноярский край
A26: Приморский край
A27: Ставропольский край
A28: Хабаровский край
A29: Амурская область
A30: Архангельская область
A31: Астраханская область
A32: Белгородская область
A33: Брянская область
A34: Владимирская область
A35: Волгоградская область
A36: Вологодская область
A37: Воронежская область
A38: Ивановская область
A39: Иркутская область
A40: Калининградская область
A41: Калужская область
A42: Камчатский край
A43: Кемеровская область
A44: Кировская область
A45: Костромская область
A46: Курганская область
A47: Курская область
A48: Ленинградская область
A49: Липецкая область
A50: Магаданская область
A51: Московская область
A52: Мурманская область
A53: Нижегородская область
A54: Новгородская область
A55: Новосибирская область
A56: Омская область
A57: Оренбургская область
A58: Орловская область
A59: Пензенская область
A60: Пермский край
A61: Псковская область
A62: Ростовская область
A63: Рязанская область
A64: Самарская область
A65: Саратовская область
A66: Сахалинская область
A67: Свердловская область
A68: Смоленская область
A69: Тамбовская область
A70: Тверская область
A71: Томская область
A72: Тульская область
A73: Тюменская область
A74: Ульяновская область
A75: Челябинская область
A76: Забайкальский край
A77: Ярославская область
A78: Еврейская автономная область
A79: Ненецкий автономный округ
A80: Ханты-Мансийский автономный округ
A81: Чукотский автономный округ
A82: Ямало-Ненецкий автономный округ
A83: Республика Крым
A84: г. Севастополь
A85: г. Москва
A86: г. Санкт-Петербург
